Workbook

Sheet Introduction
F1: www.Tricks12345.com
B3: Excel Functions
B21: Pavan Kumar Gundlapalli

Sheet Buttons
A1: Worksheets
A2: Introduction
A3: Add_SerialNumbs_UsingIsBlank_IF
A4: ABS
A5: Address
A6: Aggregate_Average
A7: Aggregate_Count
A8: Aggregate_CountA
A9: Aggregate_MAX
A10: Aggregate_MIN
A11: And_Operator
A12: Average
A13: Cal_Price_Rng_Using_IndexMatch
A14: Cell_Function_info_type_address
A15: Cell_Function_info_type_content
A16: Cell_Function_info_type_filenam
A17: Cell_Function_infotype_col
A18: Cell_Function_infotype_Row
A19: Cell_Function_Infotype_type
A20: Cell_Function_infotype_width
A21: Choose
A22: Column
A23: Compare_Two_Lists_Only_In_First
A24: Compare_Two_Lists_Only_In_Secnd
A25: Concatenate
A26: Concatenate_With_Cell_Reference
A27: Count
A28: Count_Blank_Cells_Using_CountIF
A29: Count_NonTextCells_UsingCountIF
A30: CountA
A31: CountIF
A32: CountIF_FourthChar_As_L
A33: CountIF_Function_With_Dates
A34: CountIF_PartialMatch_WildCard
A35: CountIf_Sum_Multiple_Criterias
A36: CountIF_with_Conditional_Format
A37: CountIf_With_Single_Criteria
A38: CountIfOnDynamicRng UsingOffset
A39: CountNonBlankCellsUsing_CountIF
A40: Date
A41: Day
A42: Days360
A43: Double_VLookup
A44: Even
A45: Exact
A46: Filldown_Dates_5_Days_Diff
A47: Find
A48: Find_Function_Extract_TextNumb
A49: Find_Function_Split_Left_Part
A50: Find_Function_Split_Right_Part
A51: HLookup
A52: Hour
A53: Identify_Dupes_On_Multi_Columns
A54: IF_Condition_Assign_Grades
A55: If_Condition_Pass_Or_Fail
A56: IF_Condition_Using_Min_And_Max
A57: IF_Function_With_And_Operator
A58: Index
A59: Index_Function
A60: Indirect
A61: Indirect_Dependant_Dropdown
A62: ISBLANK
A63: ISError_With_VLookup
A64: ISEven
A65: ISFORMULA
A66: ISNA_With_VLookup
A67: ISNONTEXT
A68: IsNumber
A69: ISODD
A70: ISText
A71: Large
A72: Left
A73: Len
A74: Lookup_RightToLeft_IndexMatch
A75: Lower
A76: Match
A77: Max
A78: MID
A79: MID_Function_Extract_GmailIDs
A80: Min
A81: Mod
A82: Month
A83: Multiple_Condns_to_OR_with_IF
A84: NestedIF_Function_Grading_Price
A85: NetWorkingDays
A86: Now
A87: ODD
A88: OR_Operator
A89: OR_Operator_with_IF_Condition
A90: Proper
A91: Quotient
A92: Rank
A93: Rank_when_Duplicates_Exists
A94: Remove_Dupes_IndexMatchIfError
A95: Remove_Dupes_VLookupIFError_Row
A96: Remove_Duplicates_IF_CountIF
A97: Remove_Last_Two_Chars_Left_Len
A98: Replace
A99: Replace_Using_IF_And_Left_Func
A100: Rept
A101: Retrieve_Dupes_Using_CountIF_IF
A102: Right
A103: ROMAN
A104: Round
A105: RoundDown
A106: RoundUp
A107: Row
A108: Search
A109: SHEET
A110: Small
A111: Split_The_Text_Using_FIND_func
A112: Substitute
A113: Sum
A114: Sum_Based_On_Incremental_Range
A115: Sum_Large_Three_Values
A116: Sum_The_Named_Range
A117: SumIF_Based_On_Len_Of_Text
A118: SumIF_Based_On_WildCard_Chactr
A119: SumIF_Dates
A120: SumIF_Function
A121: SumIF_Multiple_Criteria_On_Col
A122: SumIFs_With_Dates
A123: Time_Add_Hrs_Mins_Secs
A124: Trim
A125: Trim_Remove_Space
A126: Upper
A127: VLookup_Grades_With_ApproxMatch
A128: VLookup_Match_Function_For_Col
A129: VLookup_TotalCost_Calculation
A130: Year

Sheet ABS
A1: ABS Function | J1: Return To Index
A2: Data | B2: Price | C2: Formula
A3: -44 | B3: =ABS(A3) -> 44 | C3: =ABS(A3)
A4: 58 | B4: =ABS(A4) -> 58 | C4: =ABS(A4)
A5: 48.56 | B5: 48.56 | C5: =ABS(A5)
A6: -48 | B6: 48 | C6: =ABS(A6)
A7: 0.66 | B7: 0.66 | C7: =ABS(A7)

Sheet Address
A1: Address Fucntion | J1: Return To Index
A2: Data | B2: Result | C2: Formula
A3: Apple | B3: =ADDRESS(ROW(),1,1,TRUE,"Address") -> Address!$A$3 | C3: =ADDRESS(ROW(),1,1,TRUE,"Address")
A4: Banana | B4: =ADDRESS(ROW(),1,1,TRUE,"Address") -> Address!$A$4 | C4: =ADDRESS(ROW(),1,1,TRUE,"Address")
A5: Orange | B5: Address!$A$5 | C5: =ADDRESS(ROW(),1,1,TRUE,"Address")
A6: Grapes | B6: Address!$A$6 | C6: =ADDRESS(ROW(),1,1,TRUE,"Address")
A7: PineApple | B7: Address!$A$7 | C7: =ADDRESS(ROW(),1,1,TRUE,"Address")
E12: Lookup & Reference Function
E13: It returns cell reference as Address

Sheet Aggregate_Average
A1: Aggregate Function - Average | J1: Return To Index
A2: Data | B2: Price | C2: Result | D2: Formula
A3: Apple | B3: 55 | C3: =_xlfn.AGGREGATE(1,,B3:B$7) -> 49.8 | D3: =AGGREGATE(1,,B3:B$7)
A4: Banana | B4: 25 | C4: =_xlfn.AGGREGATE(1,,B4:B$7) -> 48.5 | D4: =AGGREGATE(1,,B4:B$7)
A5: Orange | B5: 48 | C5: =_xlfn.AGGREGATE(1,,B5:B$7) -> 56.33333333 | D5: =AGGREGATE(1,,B5:B$7)
A6: Grapes | B6: 85 | C6: =_xlfn.AGGREGATE(1,,B6:B$7) -> 60.5 | D6: =AGGREGATE(1,,B6:B$7)
A7: PineApple | B7: 36 | C7: =_xlfn.AGGREGATE(1,,B7:B$7) -> 36 | D7: =AGGREGATE(1,,B7:B$7)
D12: Math & Trig Function

Sheet Aggregate_Count
A1: Aggregate Function - Count | J1: Return To Index
A2: Data | B2: Price | C2: Result | D2: Formula
A3: Apple | B3: 55 | C3: =_xlfn.AGGREGATE(2,,B3:B$7) -> 5 | D3: =AGGREGATE(2,,B3:B$7)
A4: Banana | B4: 25 | C4: =_xlfn.AGGREGATE(2,,B4:B$7) -> 4 | D4: =AGGREGATE(2,,B4:B$7)
A5: Orange | B5: 48 | C5: =_xlfn.AGGREGATE(2,,B5:B$7) -> 3 | D5: =AGGREGATE(2,,B5:B$7)
A6: Grapes | B6: 85 | C6: =_xlfn.AGGREGATE(2,,B6:B$7) -> 2 | D6: =AGGREGATE(2,,B6:B$7)
A7: PineApple | B7: 36 | C7: =_xlfn.AGGREGATE(2,,B7:B$7) -> 1 | D7: =AGGREGATE(2,,B7:B$7)
D12: Math & Trig Function

Sheet Aggregate_CountA
A1: Aggregate Function - CountA | J1: Return To Index
A2: Data | B2: Price | C2: Result | D2: Formula
A3: Apple | B3: 55 | C3: =_xlfn.AGGREGATE(3,4,B3:B$7) -> 5 | D3: =AGGREGATE(3,4,B3:B$7)
A4: Banana | B4: 25 | C4: =_xlfn.AGGREGATE(3,4,B4:B$7) -> 4 | D4: =AGGREGATE(3,4,B4:B$7)
A5: Orange | B5: 48 | C5: =_xlfn.AGGREGATE(3,4,B5:B$7) -> 3 | D5: =AGGREGATE(3,4,B5:B$7)
A6: Grapes | B6: 85 | C6: =_xlfn.AGGREGATE(3,4,B6:B$7) -> 2 | D6: =AGGREGATE(3,4,B6:B$7)
A7: PineApple | B7: 36 | C7: =_xlfn.AGGREGATE(3,4,B7:B$7) -> 1 | D7: =AGGREGATE(3,4,B7:B$7)
D12: Math & Trig Function

Sheet Aggregate_MAX
A1: Aggregate Function - MAX | J1: Return To Index
A2: Data | B2: Price | C2: Result | D2: Formula
A3: Apple | B3: 55 | C3: =_xlfn.AGGREGATE(4,4,B3:B$7) -> 98 | D3: =AGGREGATE(4,4,B3:B$7)
A4: Banana | B4: 98 | C4: =_xlfn.AGGREGATE(4,4,B4:B$7) -> 98 | D4: =AGGREGATE(4,4,B4:B$7)
A5: Orange | B5: 48 | C5: =_xlfn.AGGREGATE(4,4,B5:B$7) -> 85 | D5: =AGGREGATE(4,4,B5:B$7)
A6: Grapes | B6: 85 | C6: =_xlfn.AGGREGATE(4,4,B6:B$7) -> 85 | D6: =AGGREGATE(4,4,B6:B$7)
A7: PineApple | B7: 36 | C7: =_xlfn.AGGREGATE(4,4,B7:B$7) -> 36 | D7: =AGGREGATE(4,4,B7:B$7)
D12: Math & Trig Function

Sheet Aggregate_MIN
A1: Aggregate Function - MIN | J1: Return To Index
A2: Data | B2: Price | C2: Result | D2: Formula
A3: Apple | B3: 55 | C3: =_xlfn.AGGREGATE(5,4,B3:B$7) -> 18 | D3: =AGGREGATE(5,4,B3:B$7)
A4: Banana | B4: 18 | C4: =_xlfn.AGGREGATE(5,4,B4:B$7) -> 18 | D4: =AGGREGATE(5,4,B4:B$7)
A5: Orange | B5: 25 | C5: =_xlfn.AGGREGATE(5,4,B5:B$7) -> 25 | D5: =AGGREGATE(5,4,B5:B$7)
A6: Grapes | B6: 85 | C6: =_xlfn.AGGREGATE(5,4,B6:B$7) -> 36 | D6: =AGGREGATE(5,4,B6:B$7)
A7: PineApple | B7: 36 | C7: =_xlfn.AGGREGATE(5,4,B7:B$7) -> 36 | D7: =AGGREGATE(5,4,B7:B$7)
D12: Math & Trig Function

Sheet And_Operator
A1: AND Operator | J1: Return To Index
A2: Number | B2: Result | C2: Formula
A3: 15 | B3: =AND(A3>11,A3<18) -> TRUE | C3: =AND(A3>11,A3<18)
A4: 20 | B4: FALSE | C4: =AND(A4>11,A4<18)
A5: 16 | B5: TRUE | C5: =AND(A5>11,A5<18)
A6: 20 | B6: FALSE | C6: =AND(A6>11,A6<18)
A7: 18 | B7: FALSE | C7: =AND(A7>11,A7<18)

Sheet Average
A1: Average Function | J1: Return To Index
A2: Data | B2: Average | C2: Formula
A3: 55 | B3: =AVERAGE(A3:A$9) -> 55.85714286 | C3: =AVERAGE(A3:A$9)
A4: 45 | B4: =AVERAGE(A4:A$9) -> 56 | C4: =AVERAGE(A4:A$9)
A5: 36 | B5: =AVERAGE(A5:A$9) -> 58.2 | C5: =AVERAGE(A5:A$9)
A6: 78 | B6: =AVERAGE(A6:A$9) -> 63.75 | C6: =AVERAGE(A6:A$9)
A7: 55 | B7: =AVERAGE(A7:A$9) -> 59 | C7: =AVERAGE(A7:A$9)
A8: 78 | B8: =AVERAGE(A8:A$9) -> 61 | C8: =AVERAGE(A8:A$9)
A9: 44 | B9: =AVERAGE(A9:A$9) -> 44 | C9: =AVERAGE(A9:A$9)

Sheet Cal_Price_Rng_Using_IndexMatch
A1: Qty | B1: Fruit | C1: Price | J1: Return To Index
A2: 1100 | B2: Apple | C2: 100 | E2: Enter the Approx Number
A3: 1101 | B3: Banana | C3: 200 | E3: 350
A4: 1102 | B4: Grapes | C4: 300
A5: 1103 | B5: Papaya | C5: 400 | E5: =INDEX(B2:B8,MATCH(E3,C2:C8,1)) -> Grapes
A6: 1104 | B6: PineApple | C6: 500 | D6: =INDEX(B2:B8,MATCH(E3,C2:C8,1))
A7: 1105 | B7: PromeGranete | C7: 600
A8: 1106 | B8: BlackBerries | C8: 700 | D8: Based on number mentioned in E3, we can retrieve the Fruit name

Sheet Cell_Function_info_type_address
A1: Cell Function - Info_type = address | J1: Return To Index
A2: Data | B2: Result | C2: Formula
A3: Apple | B3: =CELL("address",A3) -> $A$3 | C3: =CELL("address",A3)
A4: Banana | B4: =CELL("address",A4) -> $A$4 | C4: =CELL("address",A4)
A5: Orange | B5: $A$5 | C5: =CELL("address",A5)
A6: Grapes | B6: $A$6 | C6: =CELL("address",A6)
A7: PineApple | B7: $A$7 | C7: =CELL("address",A7)
D12: Information Function Liabrary

Sheet Cell_Function_info_type_content
A1: Cell Function - Info_type = contents | J1: Return To Index
A2: Data | B2: Result | C2: Formula
A3: Apple | B3: =CELL("contents",A3) -> Apple | C3: =CELL("contents",A3)
A4: Banana | B4: =CELL("contents",A4) -> Banana | C4: =CELL("contents",A4)
A5: Orange | B5: Orange | C5: =CELL("contents",A5)
A6: Grapes | B6: Grapes | C6: =CELL("contents",A6)
A7: PineApple | B7: PineApple | C7: =CELL("contents",A7)
D12: Information Function Liabrary

Sheet Cell_Function_info_type_filenam
A1: Cell Function - Info_type = filename | J1: Return To Index
A2: Data | B2: Result | C2: Formula
A3: Apple | B3: =CELL("filename",A3) -> C:\Users\PavanKumar\Desktop\Testing\[Excel_Functions.xlsm]Cell_Function_info_type_filenam | C3: =CELL("filename",A3)
A4: Banana | B4: =CELL("filename",A4) -> C:\Users\PavanKumar\Desktop\Testing\[Excel_Functions.xlsm]Cell_Function_info_type_filenam | C4: =CELL("filename",A4)
A5: Orange | B5: C:\Users\PavanKumar\Desktop\Testing\[Excel_Functions.xlsm]Cell_Function_info_type_filenam | C5: =CELL("filename",A5)
A6: Grapes | B6: C:\Users\PavanKumar\Desktop\Testing\[Excel_Functions.xlsm]Cell_Function_info_type_filenam | C6: =CELL("filename",A6)
A7: PineApple | B7: C:\Users\PavanKumar\Desktop\Testing\[Excel_Functions.xlsm]Cell_Function_info_type_filenam | C7: =CELL("filename",A7)
D12: Information Function Liabrary

Sheet Cell_Function_infotype_col
A1: Cell Function - Info_type = col | J1: Return To Index
A2: Data | B2: Result | C2: Formula
A3: Apple | B3: =CELL("col",A3) -> 1 | C3: =CELL("col",A3)
A4: Banana | B4: =CELL("col",A4) -> 1 | C4: =CELL("col",A4)
A5: Orange | B5: 1 | C5: =CELL("col",A5)
A6: Grapes | B6: 1 | C6: =CELL("col",A6)
A7: PineApple | B7: 1 | C7: =CELL("col",A7)
D12: Information Function Liabrary

Sheet Cell_Function_infotype_Row
A1: Cell Function - Info_type = row | J1: Return To Index
A2: Data | B2: Result | C2: Formula
A3: Apple | B3: =CELL("row",A3) -> 3 | C3: =CELL("row",A3)
A4: Banana | B4: =CELL("row",A4) -> 4 | C4: =CELL("row",A4)
A5: Orange | B5: 5 | C5: =CELL("row",A5)
A6: Grapes | B6: 6 | C6: =CELL("row",A6)
A7: PineApple | B7: 7 | C7: =CELL("row",A7)
D12: Information Function Liabrary

Sheet Cell_Function_Infotype_type
A1: Cell Function - Info_type = row | J1: Return To Index
A2: Data | B2: Result | C2: Formula
A3: Apple | B3: =CELL("type",A3) -> l | C3: =CELL("type",A3)
A4: 45 | B4: =CELL("type",A4) -> v | C4: =CELL("type",A4)
A5: 0.5 | B5: v | C5: =CELL("type",A5)
A6: =A4+A5 -> 45.5 | B6: v | C6: =CELL("type",A6)
A7: PineApple | B7: l | C7: =CELL("type",A7)
D12: Information Function Liabrary

Sheet Cell_Function_infotype_width
A1: Cell Function - Info_type = width | J1: Return To Index
A2: Data | B2: Result | C2: Formula
A3: Apple | B3: =CELL("width",A3) -> 15 | C3: =CELL("width",A3)
A4: Banana | B4: =CELL("width",A4) -> 15 | C4: =CELL("width",A4)
A5: Orange | B5: 15 | C5: =CELL("width",A5)
A6: Grapes | B6: 15 | C6: =CELL("width",A6)
A7: PineApple | B7: 15 | C7: =CELL("width",A7)
D12: Information Function Liabrary

Sheet Choose
A1: Choose Function | J1: Return To Index
A2: Fruit | B2: Result | C2: Formula
A3: Apple | B3: =CHOOSE(3,$A$3,$A$4,$A$5,$A$6,$A$7) -> Orange | C3: =CHOOSE(3,$A$3,$A$4,$A$5,$A$6,$A$7)
A4: Banana | B4: =CHOOSE(4,$A$3,$A$4,$A$5,$A$6,$A$7) -> Grapes | C4: =CHOOSE(4,$A$3,$A$4,$A$5,$A$6,$A$7)
A5: Orange | B5: =CHOOSE(5,$A$3,$A$4,$A$5,$A$6,$A$7) -> PineApple | C5: =CHOOSE(5,$A$3,$A$4,$A$5,$A$6,$A$7)
A6: Grapes | B6: =CHOOSE(1,$A$3,$A$4,$A$5,$A$6,$A$7) -> Apple | C6: =CHOOSE(1,$A$3,$A$4,$A$5,$A$6,$A$7)
A7: PineApple | B7: =CHOOSE(2,$A$3,$A$4,$A$5,$A$6,$A$7) -> Banana | C7: =CHOOSE(2,$A$3,$A$4,$A$5,$A$6,$A$7)

Sheet Column
A1: Reference Provided | B1: Reference Omitted | J1: Return To Index
B2: =COLUMN() -> 2 | C2: =COLUMN() -> 3 | D2: =COLUMN() -> 4 | E2: =COLUMN() -> 5 | F2: =COLUMN() -> 6 | G2: =COLUMN() -> 7 | H2: =COLUMN() -> 8 | I2: =COLUMN() -> 9 | J2: =COLUMN() -> 10 | K2: =COLUMN() -> 11 | L2: =COLUMN() -> 12 | M2: =COLUMN() -> 13
A3: =COLUMN(G5) -> 7 | B3: =COLUMN() -> 2 | C3: =COLUMN() | D3: =COLUMN() | E3: =COLUMN() | F3: =COLUMN() | G3: =COLUMN() | H3: =COLUMN() | I3: =COLUMN() | J3: =COLUMN() | K3: =COLUMN() | L3: =COLUMN() | M3: =COLUMN()
B4: =COLUMN() -> 2
A5: =COLUMN(M3) -> 13 | B5: =COLUMN() -> 2
B6: =COLUMN() -> 2
B7: =COLUMN() -> 2
B8: =COLUMN() -> 2
B9: =COLUMN() -> 2
B10: =COLUMN() -> 2
B11: =COLUMN() -> 2
B12: =COLUMN() -> 2
B13: =COLUMN() -> 2
B14: =COLUMN() -> 2

Sheet Compare_Two_Lists_Only_In_First
A1: Compare Two Lists - Data Exists in First Not In Second | J1: Return To Index
A2: First List | B2: Second List | C2: Result | D2: Formula
A3: Apple | B3: Pen | C3: =VLOOKUP(A3,$B$3:$B$7,1,0) -> Apple | D3: =VLOOKUP(A3,$B$3:$B$7,1,0)
A4: Banana | B4: Pencil | C4: =VLOOKUP(A4,$B$3:$B$7,1,0) ->  | D4: =VLOOKUP(A4,$B$3:$B$7,1,0)
A5: Orange | B5: Orange | C5: Orange | D5: =VLOOKUP(A5,$B$3:$B$7,1,0)
A6: Grapes | B6: Apple | D6: =VLOOKUP(A6,$B$3:$B$7,1,0)
A7: Papaya | B7: Eraser | D7: =VLOOKUP(A7,$B$3:$B$7,1,0)

Sheet Compare_Two_Lists_Only_In_Secnd
A1: Compare Two Lists - Data Exists in Second Not In First | J1: Return To Index
A2: First List | B2: Second List | C2: Result | D2: Formula
A3: Apple | B3: Pen | C3: =VLOOKUP(B3,$A$3:$A$6,1,0) ->  | D3: =VLOOKUP(B3,$A$3:$A$6,1,0)
A4: Banana | B4: Pencil | C4: =VLOOKUP(B4,$A$3:$A$6,1,0) ->  | D4: =VLOOKUP(B4,$A$3:$A$6,1,0)
A5: Orange | B5: Orange | C5: Orange | D5: =VLOOKUP(B5,$A$3:$A$6,1,0)
A6: Grapes | B6: Apple | C6: Apple | D6: =VLOOKUP(B6,$A$3:$A$6,1,0)
A7: Papaya | B7: Eraser | D7: =VLOOKUP(B7,$A$3:$A$6,1,0)

Sheet Concatenate
A1: Concatenate function | J1: Return To Index
A3: S.No | B3: Text 1 | C3: Text 2 | D3: Result | E3: Formula
A4: 1) | B4: One | C4: Two | D4: =CONCATENATE("one","two") -> onetwo | E4: =CONCATENATE("one","two")
A5: 2) | B5: One | C5: Two | D5: =CONCATENATE("one"," ","two") -> one two | E5: =CONCATENATE("one"," ","two")
A6: 3) | B6: One | C6: Two | D6: =CONCATENATE("one"," ","two") -> one two | E6: =CONCATENATE("one"," ","two")
A9: In the first example: No space between the texts
A10: In the Second example: Single space, space should mention in QUOTES
A11: In the Third example: Three spaces, space should mention in QUOTES

Sheet Concatenate_With_Cell_Reference
J1: Return To Index
F2: Required Data
A3: Name | B3: Job | C3: Location | D3: Salary | F3: Name | G3: E
A4: A | B4: Software | C4: Hyderabad | D4: 40000
A5: B | B5: Hardware | C5: Pune | D5: =D4+15245 -> 55245
A6: C | B6: Mechanic | C6: Chennai | D6: 25000
A7: D | B7: Doctor | C7: Delhi | D7: =D6+15245 -> 40245 | F7: Job | G7: =VLOOKUP(G3,A3:D10,2,0) -> Teacher
A8: E | B8: Teacher | C8: Surat | D8: 35242 | F8: Location | G8: =VLOOKUP(G3,A3:D10,3,0) -> Surat
A9: F | B9: Police | C9: Mumbai | D9: 50487 | F9: Salary | G9: =VLOOKUP(G3,A4:D10,4,0) -> 35242
A10: G | B10: pilot | C10: Ahemadabad | D10: 35025
G12: =CONCATENATE(G3," ","doing job of"," ",G7," ") -> E doing job of Teacher
G13: =CONCATENATE(G3," ","doing job in"," ",G8) -> E doing job in Surat
G14: =CONCATENATE(G3," ","earning salary "," ",G9) -> E earning salary 35242

Sheet Count
A1: Count Function | J1: Return To Index
A2: Data | B2: Count | C2: Formula
A3: Apple | B3: =COUNT(A3:A$9) -> 2 | C3: =COUNT(A3:A$9)
A4: Banana | B4: =COUNT(A4:A$9) -> 2 | C4: =COUNT(A4:A$9)
A5: Orange | B5: =COUNT(A5:A$9) -> 2 | C5: =COUNT(A5:A$9)
A6: 33 | B6: =COUNT(A6:A$9) -> 2 | C6: =COUNT(A6:A$9)
A7: PineApple | B7: =COUNT(A7:A$9) -> 1 | C7: =COUNT(A7:A$9)
A8: Papaya | B8: =COUNT(A8:A$9) -> 1 | C8: =COUNT(A8:A$9)
A9: 65 | B9: =COUNT(A9:A$9) -> 1 | C9: =COUNT(A9:A$9)

Sheet Count_Blank_Cells_Using_CountIF
A1: Count Blank Cells | J1: Return To Index
A2: Data | B2: Result | C2: Formula
A3: 55 | B3: =COUNTIF(A3:A$7,"="&"") -> 2 | C3: =COUNTIF(A3:A$7,"="&"")
B4: =COUNTIF(A4:A$7,"="&"") -> 2 | C4: =COUNTIF(A4:A$7,"="&"")
A5: Apple | B5: =COUNTIF(A5:A$7,"="&"") -> 1 | C5: =COUNTIF(A5:A$7,"="&"")
B6: =COUNTIF(A6:A$7,"="&"") -> 1 | C6: =COUNTIF(A6:A$7,"="&"")
A7: Orange | B7: =COUNTIF(A7:A$7,"="&"") -> 0 | C7: =COUNTIF(A7:A$7,"="&"")

Sheet Count_NonTextCells_UsingCountIF
A1: Count Non TEXT Cells Using COUNTIF Function | J1: Return To Index
A2: Data | B2: Result | C2: Formula
A3: 55 | B3: =COUNTIF(A3:A$7,"<>" & "*") -> 2 | C3: =COUNTIF(A3:A$7,"<>" & "*")
A4: Grapes | B4: =COUNTIF(A4:A$7,"<>" & "*") -> 1 | C4: =COUNTIF(A4:A$7,"<>" & "*")
A5: Apple | B5: =COUNTIF(A5:A$7,"<>" & "*") -> 1 | C5: =COUNTIF(A5:A$7,"<>" & "*")
A6: 150 | B6: =COUNTIF(A6:A$7,"<>" & "*") -> 1 | C6: =COUNTIF(A6:A$7,"<>" & "*")
A7: Orange | B7: =COUNTIF(A7:A$7,"<>" & "*") -> 0 | C7: =COUNTIF(A7:A$7,"<>" & "*")

Sheet CountA
A1: CountA Function | J1: Return To Index
A2: Data | B2: Result | C2: Formula
A3: 55 | B3: =COUNTA(A3:A$7) -> 5 | C3: =COUNTA(A3:A$7)
A4: Grapes | B4: =COUNTA(A4:A$7) -> 4 | C4: =COUNTA(A4:A$7)
A5: Apple | B5: =COUNTA(A5:A$7) -> 3 | C5: =COUNTA(A5:A$7)
A6: 2021-01-28 | B6: =COUNTA(A6:A$7) -> 2 | C6: =COUNTA(A6:A$7)
A7: Orange | B7: =COUNTA(A7:A$7) -> 1 | C7: =COUNTA(A7:A$7)

Sheet CountIF
A1: CountIF Function | J1: Return To Index
A2: Data | B2: Result | C2: Formula
A3: Apple | B3: =COUNTIF($A3:$A$7,A3) -> 2 | C3: =COUNTIF($A3:$A$7,A3)
A4: Orange | B4: =COUNTIF($A4:$A$7,A4) -> 2 | C4: =COUNTIF($A4:$A$7,A4)
A5: Grapes | B5: =COUNTIF($A5:$A$7,A5) -> 1 | C5: =COUNTIF($A5:$A$7,A5)
A6: Apple | B6: =COUNTIF($A6:$A$7,A6) -> 1 | C6: =COUNTIF($A6:$A$7,A6)
A7: Orange | B7: =COUNTIF($A7:$A$7,A7) -> 1 | C7: =COUNTIF($A7:$A$7,A7)

Sheet CountIF_FourthChar_As_L
A1: CountIF Function - 4th Character as L | J1: Return To Index
A2: Data | B2: Result | C2: Formula
A3: Apple | B3: =COUNTIF(A3:$A$7,"???l*") -> 3 | C3: =COUNTIF(A3:$A$7,"???l*")
A4: App | B4: =COUNTIF(A4:$A$7,"???l*") -> 2 | C4: =COUNTIF(A4:$A$7,"???l*")
A5: Apple | B5: =COUNTIF(A5:$A$7,"???l*") -> 2 | C5: =COUNTIF(A5:$A$7,"???l*")
A6: Aplep | B6: =COUNTIF(A6:$A$7,"???l*") -> 1 | C6: =COUNTIF(A6:$A$7,"???l*")
A7: Apple | B7: =COUNTIF(A7:$A$7,"???l*") -> 1 | C7: =COUNTIF(A7:$A$7,"???l*")

Sheet CountIF_Function_With_Dates
A1: CountIF Function with Dates | J1: Return To Index
A2: Dates | B2: Result | C2: Formula
A3: 2021-01-20 | B3: =COUNTIF(OFFSET(A$3,0,0,COUNTA(A:A),1),A3) -> 3 | C3: =COUNTIF(OFFSET(A$3,0,0,COUNTA(A:A),1),A3)
A4: 2021-01-21 | B4: =COUNTIF(OFFSET(A$3,0,0,COUNTA(A:A),1),">=1/21/2021") -> 2 | C4: =COUNTIF(OFFSET(A$3,0,0,COUNTA(A:A),1),">=1/21/2021")
A5: 2021-01-20 | B5: =COUNTIF(OFFSET(A$3,0,0,COUNTA(A:A),1),"=1/20/2021") -> 3 | C5: =COUNTIF(OFFSET(A$3,0,0,COUNTA(A:A),1),"=1/20/2021")
A6: 2021-01-23 | B6: =COUNTIF(OFFSET(A$3,0,0,COUNTA(A:A),1),A6) -> 1 | C6: =COUNTIF(OFFSET(A$3,0,0,COUNTA(A:A),1),A6)
A7: 2021-01-20 | B7: 3 | C7: =COUNTIF(OFFSET(A$3,0,0,COUNTA(A:A),1),A7)

Sheet CountIF_PartialMatch_WildCard
A1: CountIF Function - Partial Match Using WildCard | J1: Return To Index
A2: Data | B2: Result | C2: Formula
A3: Apple | B3: =COUNTIF(A3:$A$7,"*pp*") -> 3 | C3: =COUNTIF(A3:$A$7,"*pp*")
A4: Banana | B4: =COUNTIF(A4:$A$7,"*pp*") -> 2 | C4: =COUNTIF(A4:$A$7,"*pp*")
A5: Apple | B5: =COUNTIF(A5:$A$7,"*pp*") -> 2 | C5: =COUNTIF(A5:$A$7,"*pp*")
A6: Grapes | B6: =COUNTIF(A6:$A$7,"*pp*") -> 1 | C6: =COUNTIF(A6:$A$7,"*pp*")
A7: PineApple | B7: =COUNTIF(A7:$A$7,"*pp*") -> 1 | C7: =COUNTIF(A7:$A$7,"*pp*")

Sheet CountIf_Sum_Multiple_Criterias
A1: CountIf Function - Sum of Multiple Criterias | J1: Return To Index
A2: Data | B2: Result | C2: Formula
A3: Milk | B3: =COUNTIF(A$1:A$10,A3) + COUNTIF(A$1:A$10,A4) -> 4 | C3: =COUNTIF(A$1:A$10,A3) + COUNTIF(A$1:A$10,A4
A4: Pens | B4: =COUNTIF(A$1:A$10,A4) + COUNTIF(A$1:A$10,A5) -> 4 | C4: =COUNTIF(A$1:A$10,A4) + COUNTIF(A$1:A$10,A5)
A5: Butter | B5: 3 | C5: =COUNTIF(A$1:A$10,A5) + COUNTIF(A$1:A$10,A6)
A6: Pencils | B6: 3 | C6: =COUNTIF(A$1:A$10,A6) + COUNTIF(A$1:A$10,A7)
A7: Pens | B7: =COUNTIF(A$1:A$10,"Pens") + COUNTIF(A$1:A$10,"Milk") -> 4 | C7: =COUNTIF(A$1:A$10,"Pens") + COUNTIF(A$1:A$10,"Milk")
A8: Milk | B8: 3 | C8: =COUNTIF(A$1:A$10,A8) + COUNTIF(A$1:A$10,A9)
A9: Curd | B9: 3 | C9: =COUNTIF(A$1:A$10,A9) + COUNTIF(A$1:A$10,A10)
A10: Butter | B10: =COUNTIF(A$1:A$10,A10) + COUNTIF(A$1:A$10,A3) -> 4 | C10: =COUNTIF(A$1:A$10,A10) + COUNTIF(A$1:A$10,A3)

Sheet CountIF_with_Conditional_Format
A1: CountIF with Conditional Formatting | J1: Return To Index
A2: Fruits
A3: Apple | E3: Apple
A4: Banana | E4: =COUNTIF($A$3:$A$7,E3) -> 3
A5: Apple
A6: Grapes | D6: =COUNTIF($A$3:$A$7,E3)
A7: Apple

Sheet CountIf_With_Single_Criteria
A1: CountIf Function with Single Criteria | J1: Return To Index
A2: Data | B2: Result | C2: Formula
A3: Milk | B3: =COUNTIF(A$1:A$10,A3) -> 2 | C3: =COUNTIF(A$1:A$10,A3)
A4: Pens | B4: =COUNTIF(A$1:A$10,A4) -> 2 | C4: =COUNTIF(A$1:A$10,A4)
A5: Butter | B5: 2 | C5: =COUNTIF(A$1:A$10,A5)
A6: Pencils | B6: 1 | C6: =COUNTIF(A$1:A$10,A6)
A7: Pens | B7: 2 | C7: =COUNTIF(A$1:A$10,"Pens")
A8: Milk | B8: 2 | C8: =COUNTIF(A$1:A$10,A8)
A9: Curd | B9: 1 | C9: =COUNTIF(A$1:A$10,A9)
A10: Butter | B10: 2 | C10: =COUNTIF(A$1:A$10,"Butter")

Sheet CountIfOnDynamicRng UsingOffset
A1: CountIF Function on Dynamic Range using OFFSET | J1: Return To Index
A2: Fruits | B2: Result | C2: Formula
A3: Apple | B3: =COUNTIF(OFFSET(A$3,0,0,COUNTA(A:A),1),A3) -> 3 | C3: =COUNTIF(OFFSET(A$3,0,0,COUNTA(A:A),1),A3)
A4: Banana | B4: =COUNTIF(OFFSET(A$3,0,0,COUNTA(A:A),1),A4) -> 1 | C4: =COUNTIF(OFFSET(A$3,0,0,COUNTA(A:A),1),A4)
A5: Apple | B5: 3 | C5: =COUNTIF(OFFSET(A$3,0,0,COUNTA(A:A),1),A5)
A6: Grapes | B6: 1 | C6: =COUNTIF(OFFSET(A$3,0,0,COUNTA(A:A),1),A6)
A7: Apple | B7: 3 | C7: =COUNTIF(OFFSET(A$3,0,0,COUNTA(A:A),1),A7)

Sheet CountNonBlankCellsUsing_CountIF
A1: Count Non Blank Cells | J1: Return To Index
A2: Data | B2: Result | C2: Formula
A3: 55 | B3: =COUNTIF(A3:A$7,"<>"&"") -> 3 | C3: =COUNTIF(A3:A$7,"<>"&"")
B4: =COUNTIF(A4:A$7,"<>"&"") -> 2 | C4: =COUNTIF(A4:A$7,"<>"&"")
A5: Apple | B5: =COUNTIF(A5:A$7,"<>"&"") -> 2 | C5: =COUNTIF(A5:A$7,"<>"&"")
B6: =COUNTIF(A6:A$7,"<>"&"") -> 1 | C6: =COUNTIF(A6:A$7,"<>"&"")
A7: Orange | B7: =COUNTIF(A7:A$7,"<>"&"") -> 1 | C7: =COUNTIF(A7:A$7,"<>"&"")

Sheet Date
A1: Date Function | J1: Return To Index
A2: Year | B2: Month | C2: Day | D2: Date | E2: Formula
A3: 2021 | B3: 1 | C3: 20 | D3: =DATE(A3,B3,C3) -> 2021-01-20 | E3: =DATE(A3,B3,C3)
A4: 1978 | B4: 1 | C4: 27 | D4: =DATE(A4,B4,C4) -> 1978-01-27 | E4: =DATE(A4,B4,C4)
A5: 2021 | B5: 1 | C5: 25 | D5: =DATE(A5,B5,C5) -> 2021-01-25 | E5: =DATE(A5,B5,C5)

Sheet Day
A1: Day Function | J1: Return To Index
A2: Date | B2: Day Function Result | C2: Formula
A3: 2021-01-20 | B3: =DAY(A3) -> 20 | C3: =DAY(A3)
A4: 2020-01-11 | B4: =DAY(A4) -> 11 | C4: =DAY(A4)
A5: 2021-01-27 | B5: 27 | C5: =DAY(A5)
A6: 2021-05-22 | B6: 22 | C6: =DAY(A6)
A7: 2021-04-28 | B7: 28 | C7: =DAY(A7)

Sheet Days360
A1: Days360 Function | J1: Return To Index
A3: Start Date | B3: End Date | C3: Date Diff | D3: Formula
A4: 2020-01-25 | B4: 2021-01-25 | C4: =DAYS360(A4,B4) -> 360 | D4: =DAYS360(A4,B4)
A5: 2019-01-25 | B5: 2021-01-25 | C5: =DAYS360(A5,B5,FALSE) -> 720 | D5: =DAYS360(A5,B5,FALSE)
A6: 2019-01-25 | B6: 2021-01-25 | C6: =DAYS360(A6,B6,TRUE ) -> 720 | D6: =DAYS360(A6,B6,TRUE )
A7: 2015-01-25 | B7: 2020-01-25 | C7: =DAYS360(A7,B7,FALSE ) -> 1800 | D7: =DAYS360(A7,B7,FALSE )
A8: 2012-01-25 | B8: 2019-01-25 | C8: =DAYS360(A8,B8,TRUE) -> 2520 | D8: =DAYS360(A8,B8,TRUE)

Sheet Double_VLookup
A1: Item | B1: Price | E1: Original | F1: Code | I1: Double Vlookup | J1: Return To Index
A2: A | B2: 35 | E2: Apple | F2: A | I2: =VLOOKUP(VLOOKUP(E2,$E$2:$F$6,2,0),$A$1:$B$6,2,0) -> 35 | J2: =VLOOKUP(VLOOKUP(E2,$E$2:$F$6,2,0),$A$1:$B$6,2,0)
A3: B | B3: 36 | E3: Banana | F3: B | I3: =VLOOKUP(VLOOKUP(E3,$E$2:$F$6,2,0),$A$1:$B$6,2,0) -> 36 | J3: =VLOOKUP(VLOOKUP(E3,$E$2:$F$6,2,0),$A$1:$B$6,2,0)
A4: C | B4: 68 | E4: Carrot | F4: C | I4: 68 | J4: =VLOOKUP(VLOOKUP(E4,$E$2:$F$6,2,0),$A$1:$B$6,2,0)
A5: D | B5: 45 | E5: Dog | F5: D | I5: 45 | J5: =VLOOKUP(VLOOKUP(E5,$E$2:$F$6,2,0),$A$1:$B$6,2,0)
A6: E | B6: 55 | E6: Elephant | F6: E | I6: 55 | J6: =VLOOKUP(VLOOKUP(E6,$E$2:$F$6,2,0),$A$1:$B$6,2,0)
D12: Lookup & Reference Function

Sheet Even
A1: Data | B1: Result | C1: Formula | J1: Return To Index
A2: 7 | B2: =EVEN(A2) -> 8 | C2: =EVEN(A2)
A3: 70 | B3: =EVEN(A3) -> 70 | C3: =EVEN(A3)
A4: 55 | B4: 56 | C4: =EVEN(A4) | G4: It returns nearest Even Number if the Input number is ODD
A5: 74 | B5: 74 | C5: =EVEN(A5) | G5: There is no change in output if the Input number is Even Number
A6: 65 | B6: 66 | C6: =EVEN(A6)

Sheet Exact
A1: Exact Function | J1: Return To Index
A2: First Text | B2: Second Text | C2: Results | D2: Formula
A3: Apple | B3: Apple | C3: =EXACT(A3,B3) -> TRUE | D3: =EXACT(A3,B3)
A4: Banana | B4: banana | C4: =EXACT(A4,B4) -> FALSE | D4: =EXACT(A4,B4)
A5: Orange | B5: Orange | C5: TRUE | D5: =EXACT(A5,B5)
A6: Grapes | B6: 18 | C6: FALSE | D6: =EXACT(A6,B6)
A7: PineApple | B7: PineApple | C7: TRUE | D7: =EXACT(A7,B7)

Sheet Filldown_Dates_5_Days_Diff
A1: 2016-08-05 | J1: Return To Index
A2: =A1-$F$3 -> 2016-07-31
A3: =A2-$F$3 -> 2016-07-26 | F3: 5
A4: 2016-07-21
A5: 2016-07-16
A6: 2016-07-11
A7: 2016-07-06
A8: 2016-07-01 | E8: Dates with Gap
A9: 2016-06-26
A10: 2016-06-21
A11: 2016-06-16
A12: 2016-06-11
A13: 2016-06-06
A14: 2016-06-01
A15: 2016-05-27
A16: 2016-05-22

Sheet Find
A1: Find Function | J1: Return To Index
A2: Date | B2: Result | C2: Formula
A3: Apple | B3: =FIND("l",A3,1) -> 4 | C3: =FIND("l",A3,1)
A4: Banana | B4: =FIND("B",A4,1) -> 1 | C4: =FIND("B",A4,1)
A5: Orange | B5: =FIND("a",A5,1) -> 3 | C5: =FIND("a",A5,1)
A6: Grapes | B6: =FIND("p",A6,1) -> 4 | C6: =FIND("p",A6,1)
A7: PineApple | B7: =FIND("l",A7,1) -> 8 | C7: =FIND("l",A7,1)

Sheet Find_Function_Extract_TextNumb
A1: Find Function - Extract Character Number | J1: Return To Index
A2: Original Text | B2: Required Text | C2: Position | D2: Formula
A3: Apple | B3: p | C3: =FIND(B3,A3) -> 2 | D3: =FIND(B3,A3)
A4: Banana | B4: n | C4: =FIND(B4,A4) -> 3 | D4: =FIND(B4,A4)
A5: PineApple | B5: A | C5: 5 | D5: =FIND(B5,A5)
A6: Orange | B6: g | C6: 5 | D6: =FIND(B6,A6)
A7: Grapes | B7: p | C7: 4 | D7: =FIND(B7,A7)

Sheet Find_Function_Split_Left_Part
A1: Find Function: Split the text based on Space and retreve Left part | J1: Return To Index
A2: Text | B2: Find Space Position | C2: left | D2: Final | E2: Formula
A3: App le | B3: =FIND(" ",A3) -> 4 | C3: =LEFT(A3,B3-1) -> App | D3: =LEFT(A3,FIND(" ",A3)-1) -> App | E3: =LEFT(A3,FIND(" ",A3)-1)
A4: Ban ana | B4: 4 | C4: Ban | D4: Ban | E4: =LEFT(A4,FIND(" ",A4)-1)
A5: Ora nge | B5: 4 | C5: Ora | D5: Ora | E5: =LEFT(A5,FIND(" ",A5)-1)
A6: Pen Pencil | B6: 4 | C6: Pen | D6: Pen | E6: =LEFT(A6,FIND(" ",A6)-1)
A7: Gra pes | B7: 4 | C7: Gra | D7: Gra | E7: =LEFT(A7,FIND(" ",A7)-1)
A8: Dosa Masala | B8: 5 | C8: Dosa | D8: Dosa | E8: =LEFT(A8,FIND(" ",A8)-1)
A9: Fruit Salad | B9: 6 | C9: Fruit | D9: Fruit | E9: =LEFT(A9,FIND(" ",A9)-1)
A10: Input | B10: Step 1 | C10: Step 2 | D10: Final Step | E10: Final Formula

Sheet Find_Function_Split_Right_Part
A1: Find Function: Split the text based on Space and retrieve Right part | J1: Return To Index
A2: Text | B2: Blank Position | C2: Lengh | D2: Right | E2: Final Result | F2: Output
A3: App le | B3: =FIND(" ",A3) -> 4 | C3: =LEN(A3) -> 6 | D3: =RIGHT(A3,C3-B3) -> le | E3: =RIGHT(A3, LEN(A3)-FIND(" ",A3)) -> le | F3: =RIGHT(A3, LEN(A3)-FIND(" ",A3))
A4: Ban ana | B4: =FIND(" ",A4) -> 4 | C4: =LEN(A4) -> 7 | D4: =RIGHT(A4,C4-B4) -> ana | E4: =RIGHT(A4, LEN(A4)-FIND(" ",A4)) -> ana | F4: =RIGHT(A4, LEN(A4)-FIND(" ",A4))
A5: Ora nge | B5: 4 | C5: 7 | D5: nge | E5: nge | F5: =RIGHT(A5, LEN(A5)-FIND(" ",A5))
A6: Pen Pencil | B6: 4 | C6: 10 | D6: Pencil | E6: Pencil | F6: =RIGHT(A6, LEN(A6)-FIND(" ",A6))
A7: Gra pes | B7: 4 | C7: 7 | D7: pes | E7: pes | F7: =RIGHT(A7, LEN(A7)-FIND(" ",A7))
A8: Dosa Masala | B8: 5 | C8: 11 | D8: Masala | E8: Masala | F8: =RIGHT(A8, LEN(A8)-FIND(" ",A8))
A9: Fruit Salad | B9: 6 | C9: 11 | D9: Salad | E9: Salad | F9: =RIGHT(A9, LEN(A9)-FIND(" ",A9))
B10: Step 1 | C10: Step 2 | D10: Result | E10: Total Formula | F10: Total Formula

Sheet HLookup
A1: Roll No | B1: 1 | C1: 2 | D1: 3 | E1: 4 | F1: 5 | G1: 6 | J1: Return To Index
A2: Class | B2: V | C2: V | D2: V | E2: V | F2: V | G2: V
A3: Science | B3: 70 | C3: 80 | D3: 40 | E3: 50 | F3: 65 | G3: 55
A4: Maths | B4: 55 | C4: 65 | D4: 75 | E4: 65 | F4: 57 | G4: 35
A5: Social | B5: 74 | C5: 73 | D5: 74 | E5: 76 | F5: 75 | G5: 95
A6: English | B6: 65 | C6: 63 | D6: 64 | E6: 67 | F6: 62 | G6: 63
B9: Roll No | C9: 4 | D9: Change the Roll Number In C9 Cell
B10: Name | C10: =HLOOKUP(C9,$A$1:$G$6,2,0) -> V | D10: =HLOOKUP(C9,$A$1:$G$6,2,0)
B11: Science | C11: =HLOOKUP(C9,$A$1:$G$6,3,0) -> 50 | D11: =HLOOKUP(C9,$A$1:$G$6,3,0)
B12: Maths | C12: =HLOOKUP(C9,$A$1:$G$6,4,0) -> 65 | D12: =HLOOKUP(C9,$A$1:$G$6,4,0)
B13: Social | C13: =HLOOKUP(C9,$A$1:$G$6,5,0) -> 76 | D13: =HLOOKUP(C9,$A$1:$G$6,5,0)
B14: English | C14: =HLOOKUP(C9,$A$1:$G$6,6,0) -> 67 | D14: =HLOOKUP(C9,$A$1:$G$6,6,0)

Sheet Hour
A1: Starting Time | B1: Hour | C1: Formula | J1: Return To Index
A2: =NOW() -> 2021-02-13T11:14:08.550 | B2: =HOUR(A2) -> 11 | C2: =HOUR(A2)

Sheet Identify_Dupes_On_Multi_Columns
A1: Roll No | B1: Section | C1: Marks | D1: Subject | E1: Result | F1: Formula | J1: Return To Index
A2: 11 | B2: A | C2: 85 | D2: Science | E2: =IF(COUNTIFS($A$2:A2,A2,$B$2:B2,B2,$C$2:C2,C2,$D$2:D2,D2)>1,"Duplicate","Unique") -> Unique | F2: =IF(COUNTIFS($A$2:A2,A2,$B$2:B2,B2,$C$2:C2, C2,$D$2:D2,D2)>1,"Duplicate","Unique")
A3: 12 | B3: B | C3: 45 | D3: Social | E3: =IF(COUNTIFS($A$2:A3,A3,$B$2:B3,B3,$C$2:C3,C3,$D$2:D3,D3)>1,"Duplicate","Unique") -> Unique
A4: 14 | B4: J | C4: 99 | D4: Social | E4: =IF(COUNTIFS($A$2:A4,A4,$B$2:B4,B4,$C$2:C4,C4,$D$2:D4,D4)>1,"Duplicate","Unique") -> Unique
A5: 14 | B5: D | C5: 65 | D5: English | E5: =IF(COUNTIFS($A$2:A5,A5,$B$2:B5,B5,$C$2:C5,C5,$D$2:D5,D5)>1,"Duplicate","Unique") -> Unique
A6: 15 | B6: E | C6: 84 | D6: Science | E6: =IF(COUNTIFS($A$2:A6,A6,$B$2:B6,B6,$C$2:C6,C6,$D$2:D6,D6)>1,"Duplicate","Unique") -> Unique
A7: 16 | B7: F | C7: 48 | D7: Social | E7: =IF(COUNTIFS($A$2:A7,A7,$B$2:B7,B7,$C$2:C7,C7,$D$2:D7,D7)>1,"Duplicate","Unique") -> Unique
A8: 11 | B8: A | C8: 85 | D8: Science | E8: =IF(COUNTIFS($A$2:A8,A8,$B$2:B8,B8,$C$2:C8,C8,$D$2:D8,D8)>1,"Duplicate","Unique") -> Duplicate
A9: 12 | B9: B | C9: 49 | D9: English | E9: =IF(COUNTIFS($A$2:A9,A9,$B$2:B9,B9,$C$2:C9,C9,$D$2:D9,D9)>1,"Duplicate","Unique") -> Unique
A10: 13 | B10: I | C10: 25 | D10: Science | E10: =IF(COUNTIFS($A$2:A10,A10,$B$2:B10,B10,$C$2:C10,C10,$D$2:D10,D10)>1,"Duplicate","Unique") -> Unique
A11: 14 | B11: J | C11: 99 | D11: Social | E11: =IF(COUNTIFS($A$2:A11,A11,$B$2:B11,B11,$C$2:C11,C11,$D$2:D11,D11)>1,"Duplicate","Unique") -> Duplicate
A12: 15 | B12: K | C12: 100 | D12: Maths | E12: =IF(COUNTIFS($A$2:A12,A12,$B$2:B12,B12,$C$2:C12,C12,$D$2:D12,D12)>1,"Duplicate","Unique") -> Unique
A13: 12 | B13: B | C13: 45 | D13: Social | E13: =IF(COUNTIFS($A$2:A13,A13,$B$2:B13,B13,$C$2:C13,C13,$D$2:D13,D13)>1,"Duplicate","Unique") -> Duplicate
A14: 12 | B14: B | C14: 48 | D14: English | E14: =IF(COUNTIFS($A$2:A14,A14,$B$2:B14,B14,$C$2:C14,C14,$D$2:D14,D14)>1,"Duplicate","Unique") -> Unique
A15: Identify Dupes on Multiple columns

Sheet IF_Condition_Assign_Grades
A1: Student | B1: Price | C1: Grade | D1: Formula | J1: Return To Index
A2: Apple | B2: 120 | C2: =IF(B2>150,"A","B") -> B | D2: =IF(B2>150,"A","B")
A3: Banana | B3: 130 | C3: =IF(B3>150,"A","B") -> B | D3: =IF(B3>150,"A","B")
A4: Orange | B4: 160 | C4: =IF(B4>150,"A","B") -> A | D4: =IF(B4>150,"A","B")
A5: Grapes | B5: 140 | C5: =IF(B5>150,"A","B") -> B | D5: =IF(B5>150,"A","B")
A6: PineApple | B6: 170 | C6: =IF(B6>150,"A","B") -> A | D6: =IF(B6>150,"A","B")
A8: If the Price is Greater than 150 assign A Grade else B Grade

Sheet If_Condition_Pass_Or_Fail
A1: Student | B1: Marks | C1: Result | D1: Formula | J1: Return To Index
A2: Apple | B2: 100 | C2: =IF(B2>=35,"Pass","Fail") -> Pass | D2: =IF(B2>=35,"Pass","Fail")
A3: Banana | B3: 34 | C3: Fail | D3: =IF(B3>=35,"Pass","Fail")
A4: Orange | B4: 25 | C4: Fail | D4: =IF(B4>=35,"Pass","Fail")
A5: Grapes | B5: 70 | C5: Pass | D5: =IF(B5>=35,"Pass","Fail")
A6: PineApple | B6: 80 | C6: Pass | D6: =IF(B6>=35,"Pass","Fail")
A7: Papaya | B7: 40 | C7: Pass | D7: =IF(B7>=35,"Pass","Fail")
A9: By using IF function we can conclude "Pass" or "Fail" students.
A10: Student who secures more than 35 marks falls under the category of PASS else FAIL

Sheet IF_Condition_Using_Min_And_Max
A1: Item | B1: Price | C1: Top Price | D1: Lowest Price | J1: Return To Index
A2: Apple | B2: 25 | C2: =IF(B2=MAX($B$2:$B$9),"First","") ->  | D2: =IF(B2=MIN($B$2:$B$9),"Last","") -> 
A3: Banana | B3: 36 | C3: =IF(B3=MAX($B$2:$B$9),"First","") ->  | D3: =IF(B3=MIN($B$2:$B$9),"Last","") -> 
A4: Orange | B4: 15 | D4: Last
A5: Papaya | B5: 48
A6: Grapes | B6: 75
A7: Eraser | B7: 92 | C7: First
A8: Key | B8: 35
A9: Lock | B9: 24
A10: Identify Min and Max Prices of the Items
A11: =IF(B2=MAX($B$2:$B$9),"First","")
A12: =IF(B2=MIN($B$2:$B$9),"Last","")

Sheet IF_Function_With_And_Operator
A1: Student | B1: English | C1: Maths | D1: Result | E1: Formula | J1: Return To Index
A2: Manoj | B2: 45 | C2: 35 | D2: =IF(AND(B2>=35,C2>=35),"PASS","FAIL") -> PASS | E2: =IF(AND(B2>=35,C2>=35),"PASS","FAIL")
A3: Sri | B3: 25 | C3: 45 | D3: =IF(AND(B3>=35,C3>=35),"PASS","FAIL") -> FAIL | E3: =IF(AND(B3>=35,C3>=35),"PASS","FAIL")
A4: Roopa | B4: 35 | C4: 15 | D4: =IF(AND(B4>=35,C4>=35),"PASS","FAIL") -> FAIL | E4: =IF(AND(B4>=35,C4>=35),"PASS","FAIL")
A5: Rekha | B5: 45 | C5: 35 | D5: =IF(AND(B5>=35,C5>=35),"PASS","FAIL") -> PASS | E5: =IF(AND(B5>=35,C5>=35),"PASS","FAIL")
A6: Sindhur | B6: 35 | C6: 35 | D6: =IF(AND(B6>=35,C6>=35),"PASS","FAIL") -> PASS | E6: =IF(AND(B6>=35,C6>=35),"PASS","FAIL")

Sheet Index
A1: Item | B1: Price | C1: Result | D1: Formula | J1: Return To Index
A2: Apple | B2: 45 | C2: =INDEX($A$1:$B$6,2,2) -> 45 | D2: =INDEX($A$1:$B$6,2,2)
A3: Banana | B3: 87 | C3: =INDEX($A$1:$B$6,3,2) -> 87 | D3: =INDEX($A$1:$B$6,3,2)
A4: Orange | B4: 39 | C4: =INDEX($A$1:$B$6,4,2) -> 39 | D4: =INDEX($A$1:$B$6,4,2)
A5: Grapes | B5: 77 | C5: =INDEX($A$1:$B$6,5,2) -> 77 | D5: =INDEX($A$1:$B$6,5,2)
A6: PineApple | B6: 17 | C6: =INDEX($A$1:$B$6,6,2) -> 17 | D6: =INDEX($A$1:$B$6,6,2)
F8: Array = A2:D7 | H8: Index = Intersection of ROW and COLUMN
F9: 3 = 3rd row
F10: 4 = 4th Column

Sheet Index_Function
A1: Student | B1: Item | C1: Price | D1: Location | J1: Return To Index
A2: Apple | B2: Pen | C2: 15 | D2: Delhi
A3: Orange | B3: Pencil | C3: 14 | D3: Andhra | F3: =INDEX(A2:D7,3,4) -> Kerala
A4: Banana | B4: Duster | C4: 12 | D4: Kerala | F4: =INDEX(A2:D7,3,4)
A5: Grapes | B5: Eraser | C5: 11 | D5: Tamil
A6: PineApple | B6: Marker | C6: 18 | D6: Punjab
A7: Papaya | B7: Bag | C7: 19 | D7: Jammu
B10: Array = A2:D7 | D10: Index = Intersection of ROW and COLUMN
B11: 3 = 3rd row
B12: 4 = 4th Column

Sheet Indirect
A1: Fruits | B1: Stationary | C1: Zones | F1: Item Name | G1: Drop Down | J1: Return To Index
A2: Apple | B2: Pen | C2: East | F2: Fruits | G2: Orange
A3: Banana | B3: Pencil | C3: West
A4: Orange | B4: Eraser | C4: North
A5: Grapes | B5: Salte | C5: South
A6: PineApple | B6: Book
F7: Create The Names
F8: Create data validation with Indirect function

Sheet Indirect_Dependant_Dropdown
J1: Return To Index
C3: Items | D3: Students | E3: Vegetables | G3: Name | H3: Dependent Dropdown
C4: Pen | D4: A | E4: Potato | G4: Vegetables | H4: Potato
C5: Pencil | D5: B | E5: Cabege | G5: Items | H5: Eraser
C6: Eraser | D6: C | E6: Ladyfingure | G6: Students | H6: C
C7: Duster | D7: D | E7: Beans | G7: Vegetables | H7: Ladyfingure
C8: Bag | D8: E | E8: Tamato | G8: Items | H8: Pen
C9: Books | D9: F

Sheet ISBLANK
A1: ISBLANK Function | J1: Return To Index
A2: Data | B2: Result | C2: Function
A3: Apple | B3: =ISBLANK(A3) -> FALSE | C3: =ISBLANK(A3)
A4: 45 | B4: =ISBLANK(A4) -> FALSE | C4: =ISBLANK(A4)
B5: TRUE | C5: =ISBLANK(A5)
A6: Banana | B6: FALSE | C6: =ISBLANK(A6)
A7: Orange | B7: FALSE | C7: =ISBLANK(A7)

Sheet ISError_With_VLookup
A1: Compare Two Lists - Data Exists in Second List Only - Remove the Errors | J1: Return To Index
A2: First List | B2: Second List | C2: Result | D2: Formula
A3: Apple | B3: Pen | C3: =IF(ISERROR(VLOOKUP(A3,$B$3:$B$7,1,FALSE)),B3, "") -> Pen | D3: =IF(ISERROR(VLOOKUP(A3,$B$3:$B$7,1,FALSE)),B3, "")
A4: Banana | B4: Pencil | C4: =IF(ISERROR(VLOOKUP(A4,$B$3:$B$7,1,FALSE)),B4, "") -> Pencil | D4: =IF(ISERROR(VLOOKUP(A4,$B$3:$B$7,1,FALSE)),B4, "")
A5: Orange | B5: Orange | D5: =IF(ISERROR(VLOOKUP(A5,$B$3:$B$7,1,FALSE)),B5, "")
A6: Grapes | B6: Board | C6: Board | D6: =IF(ISERROR(VLOOKUP(A6,$B$3:$B$7,1,FALSE)),B6, "")
A7: Papaya | B7: Eraser | C7: Eraser | D7: =IF(ISERROR(VLOOKUP(A7,$B$3:$B$7,1,FALSE)),B7, "")

Sheet ISEven
A1: ISEVEN Function | J1: Return To Index
A2: Data | B2: Result | C2: Formula
A3: 15 | B3: =ISEVEN(A3) -> FALSE | C3: =ISEVEN(A3)
A4: 20 | B4: =ISEVEN(A4) -> TRUE | C4: =ISEVEN(A4)
A5: 29 | B5: FALSE | C5: =ISEVEN(A5)
A6: 20 | B6: TRUE | C6: =ISEVEN(A6)
A7: 44 | B7: TRUE | C7: =ISEVEN(A7)

Sheet ISFORMULA
A1: ISFORMULA Function | J1: Return To Index
A2: Data | B2: Result | C2: Formula
A3: 15 | B3: =_xlfn.ISFORMULA(A3) -> FALSE | C3: =ISFORMULA(A3)
A4: =A3+A5 -> 44 | B4: =_xlfn.ISFORMULA(A4) -> TRUE | C4: =ISFORMULA(A4)
A5: 29 | B5: FALSE | C5: =ISFORMULA(A5)
A6: =A5+A4 -> 73 | B6: TRUE | C6: =ISFORMULA(A6)
A7: 44 | B7: FALSE | C7: =ISFORMULA(A7)

Sheet ISNA_With_VLookup
A1: Compare Two Lists - Using ISNA - Data Exists in Second Not In First | J1: Return To Index
A2: First List | B2: Second List | C2: Result | D2: Formula
A3: Apple | B3: Pen | C3: =IF(ISNA(VLOOKUP(A3,$B$3:$B$6,1,0)), B3, "") ->  | D3: =IF(ISNA(VLOOKUP(A3,$B$3:$B$6,1,0)), B3, "")
A4: Banana | B4: Pencil | C4: =IF(ISNA(VLOOKUP(A4,$B$3:$B$6,1,0)), B4, "") -> Pencil | D4: =IF(ISNA(VLOOKUP(A4,$B$3:$B$6,1,0)), B4, "")
A5: Orange | B5: Orange | D5: =IF(ISNA(VLOOKUP(A5,$B$3:$B$6,1,0)), B5, "")
A6: Grapes | B6: Apple | C6: Apple | D6: =IF(ISNA(VLOOKUP(A6,$B$3:$B$6,1,0)), B6, "")
A7: Papaya | B7: Eraser | C7: Eraser | D7: =IF(ISNA(VLOOKUP(A7,$B$3:$B$6,1,0)), B7, "")

Sheet ISNONTEXT
A1: ISNONTEXT Function | J1: Return To Index
A2: Data | B2: Result | C2: Function
A3: Apple | B3: =ISNONTEXT(A3) -> FALSE | C3: =ISNONTEXT(A3)
A4: Banana | B4: =ISNONTEXT(A4) -> FALSE | C4: =ISNONTEXT(A4)
A5: Orange | B5: FALSE | C5: =ISNONTEXT(A5)
A6: Grapes | B6: FALSE | C6: =ISNONTEXT(A6)
A7: 12345 | B7: TRUE | C7: =ISNONTEXT(A7)

Sheet IsNumber
A1: IsNumber Function | J1: Return To Index
A2: Data | B2: Result | C2: Formula
A3: 58 | B3: =ISNUMBER(A3) -> TRUE | C3: =ISNUMBER(A3)
A4: 39 | B4: =ISNUMBER(A4) -> TRUE | C4: =ISNUMBER(A4)
A5: Apple | B5: FALSE | C5: =ISNUMBER(A5)
A6: 25.3 | B6: TRUE | C6: =ISNUMBER(A6)
A7: Banana123 | B7: FALSE | C7: =ISNUMBER(A7)

Sheet ISODD
A1: ISODD Function | J1: Return To Index
A2: Number | B2: Result | C2: Formula
A3: 15 | B3: =ISODD(A3) -> TRUE | C3: =ISODD(A3)
A4: 20 | B4: =ISODD(A4) -> FALSE | C4: =ISODD(A4)
A5: 29 | B5: TRUE | C5: =ISODD(A5) | E5: Returns TRUE if the provided number is ODD, else returns FALSE
A6: 20 | B6: FALSE | C6: =ISODD(A6)
A7: 44 | B7: FALSE | C7: =ISODD(A7)

Sheet ISText
A1: ISText Function | J1: Return To Index
A2: Text | B2: Result | C2: Formula
A3: Apple | B3: =ISTEXT(A3) -> TRUE | C3: =ISTEXT(A3)
A4: Banana | B4: =ISTEXT(A4) -> TRUE | C4: =ISTEXT(A4)
A5: 45 | B5: FALSE | C5: =ISTEXT(A5)
A6: Grapes | B6: TRUE | C6: =ISTEXT(A6)
A7: 55 | B7: =ISTEXT(A7) -> FALSE | C7: =ISTEXT(A7)
A8: Papaya | B8: TRUE | C8: =ISTEXT(A8)

Sheet Large
A1: Large Function | J1: Return To Index
A2: Data | B2: Result | C2: Formula
A3: 55 | B3: =LARGE($A$3:$A$7, 1) -> 77 | C3: =LARGE($A$3:$A$7, 1)
A4: 48 | B4: =LARGE($A$3:$A$7, 2) -> 55 | C4: =LARGE($A$3:$A$7, 2)
A5: 77 | B5: =LARGE($A$3:$A$7, 3) -> 48 | C5: =LARGE($A$3:$A$7, 3)
A6: 38 | B6: =LARGE($A$3:$A$7, 4) -> 38 | C6: =LARGE($A$3:$A$7, 4)
A7: 28 | B7: =LARGE($A$3:$A$7, 5) -> 28 | C7: =LARGE($A$3:$A$7, 5)

Sheet Left
A1: Left Function | J1: Return To Index
A2: Text | B2: Result | C2: Formula
A3: Left One | B3: =LEFT(A3,1) -> L | C3: =LEFT(A3,1)
A4: Left Two | B4: =LEFT(A4,2) -> Le | C4: =LEFT(A4,2)
A5: Left Zero | B5: =LEFT(A5,0) ->  | C5: =LEFT(A5,0)

Sheet Len
A1: Len Function | J1: Return To Index
A2: Text | B2: Result | C2: Formula
A3: Apple | B3: =LEN(A3) -> 5 | C3: =LEN(A3)
A4: Banana | B4: =LEN(A4) -> 6 | C4: =LEN(A4)
A5: Orange | B5: 6 | C5: =LEN(A5)
A6: Grapes | B6: 6 | C6: =LEN(A6)
A7: PineApple | B7: 9 | C7: =LEN(A7)
A8: Papaya | B8: 6 | C8: =LEN(A8)

Sheet Lookup_RightToLeft_IndexMatch
A1: Company Name | B1: SECTOR | C1: LOCATION | J1: Return To Index
A2: A | B2: CEMENT | C2: HYD
A3: B | B3: METAL | C3: DELHI | E3: Location | F3: Company Name
A4: C | B4: STEEL | C4: CHENNAI | E4: HOWRA | F4: =INDEX(A2:A9,MATCH(E4,C2:C9,0)) -> G
A5: D | B5: PLASTIC | C5: CALICUT
A6: E | B6: IRON | C6: CALCUTTA | D6: =INDEX(A2:A9,MATCH(E4,C2:C9,0))
A7: G | B7: COPPOR | C7: HOWRA
A8: G | B8: INFRA | C8: SECBAD
A9: H | B9: PARA | C9: GOA

Sheet Lower
A1: Lower Function | J1: Return To Index
A2: Text | B2: Result | C2: Formula | J2: Return To Index
A3: Apple | B3: =LOWER(A3) -> apple | C3: =LOWER(A3)
A4: Banana | B4: =LOWER(A4) -> banana | C4: =LOWER(A4)
A5: Orange | B5: orange | C5: =LOWER(A5)
A6: Grapes | B6: grapes | C6: =LOWER(A6)
A7: PineApple | B7: pineapple | C7: =LOWER(A7)

Sheet Match
A1: MATCH Function | J1: Return To Index
A2: Item | B2: Price | C2: Result | D2: Formula
A3: Apple | B3: 45 | C3: =MATCH(A3,$A$3:$A$7,0) -> 1 | D3: =MATCH(A3,$A$3:$A$7,0)
A4: Banana | B4: 87 | C4: =MATCH(A4,$A$3:$A$7,0) -> 2 | D4: =MATCH(A4,$A$3:$A$7,0)
A5: Orange | B5: 39 | C5: 3 | D5: =MATCH(A5,$A$3:$A$7,0)
A6: Grapes | B6: 77 | C6: 4 | D6: =MATCH(A6,$A$3:$A$7,0)
A7: PineApple | B7: 17 | C7: 5 | D7: =MATCH(A7,$A$3:$A$7,0)

Sheet Max
A1: Max Function | J1: Return To Index
A2: Data | B2: Result | C2: Formula
A3: 98 | B3: =MAX(A3:A$9) -> 98 | C3: =MAX(A3:A$9)
A4: 59 | B4: =MAX(A4:A$9) -> 86 | C4: =MAX(A4:A$9)
A5: 86 | B5: =MAX(A5:A$9) -> 86 | C5: =MAX(A5:A$9)
A6: 78 | B6: =MAX(A6:A$9) -> 78 | C6: =MAX(A6:A$9)
A7: 67 | B7: =MAX(A7:A$9) -> 67 | C7: =MAX(A7:A$9)
A8: 55 | B8: =MAX(A8:A$9) -> 55 | C8: =MAX(A8:A$9)
A9: 44 | B9: =MAX(A9:A$9) -> 44 | C9: =MAX(A9:A$9)

Sheet MID
A1: MID Function | J1: Return To Index
A2: Data | B2: Result | C2: Formula
A3: Pen | B3: =MID(A3,1,2) -> Pe | C3: =MID(A3,1,2)
A4: Pencil | B4: =MID(A4,1,3) -> Pen | C4: =MID(A4,1,3)
A5: Eraser | B5: =MID(A5,1,4) -> Eras | C5: =MID(A5,1,4)
A6: Duster | B6: =MID(A6,1,5) -> Duste | C6: =MID(A6,1,5)
A7: Marker | B7: =MID(A7,1,6) -> Marker | C7: =MID(A7,1,6)

Sheet MID_Function_Extract_GmailIDs
A1: Mail IDs | B1: STEP 1 - Mid Function | C1: STEP 2 - IF function | D1: Final Output | E1: Formula | J1: Return To Index
A2: abcd@gmail.com | B2: =MID(RIGHT(A2,9),1,5) -> gmail | C2: =IF(MID(RIGHT(A2,9),1,5)="gmail",A2,"") -> abcd@gmail.com | D2: abcd@gmail.com | E2: =IF(MID(RIGHT(A2,9),1,5)="gmail",A2,"")
A3: mnop@yahoomail.com | B3: =MID(RIGHT(A3,9),1,5) -> omail | C3: =IF(MID(RIGHT(A3,9),1,5)="gmail",A3,"") ->  | D3: abc123@gmail.com
A4: abc123@gmail.com | B4: gmail | C4: abc123@gmail.com | D4: jkl@gmail.com
A5: Yahoo1234@yahoomail.com | B5: omail | D5: abcd@gmail.com
A6: abc@rediffmail.com | B6: fmail | D6: abc123@gmail.com
A7: jkl@gmail.com | B7: gmail | C7: jkl@gmail.com | D7: jkl@gmail.com
A8: rstuv@yahoomail.com | B8: omail | D8: abcd@gmail.com
A9: abcd@gmail.com | B9: gmail | C9: abcd@gmail.com | D9: abc123@gmail.com
A10: mnop@yahoomail.com | B10: omail | D10: jkl@gmail.com
A11: abc123@gmail.com | B11: gmail | C11: abc123@gmail.com | D11: abcd@gmail.com
A12: Yahoo1234@yahoomail.com | B12: omail | D12: abc123@gmail.com
A13: abc@rediffmail.com | B13: fmail | D13: jkl@gmail.com
A14: jkl@gmail.com | B14: gmail | C14: jkl@gmail.com | D14: abcd@gmail.com
A15: rstuv@yahoomail.com | B15: omail | D15: abc123@gmail.com
A16: abcd@gmail.com | B16: gmail | C16: abcd@gmail.com | D16: jkl@gmail.com
A17: mnop@yahoomail.com | B17: omail | D17: abcd@gmail.com
A18: abc123@gmail.com | B18: gmail | C18: abc123@gmail.com | D18: abc123@gmail.com
A19: Yahoo1234@yahoomail.com | B19: omail | D19: jkl@gmail.com
A20: abc@rediffmail.com | B20: fmail | D20: abcd@gmail.com
A21: jkl@gmail.com | B21: gmail | C21: jkl@gmail.com | D21: abc123@gmail.com
A22: rstuv@yahoomail.com | B22: omail | D22: jkl@gmail.com
A23: abcd@gmail.com | B23: gmail | C23: abcd@gmail.com | D23: abcd@gmail.com
A24: mnop@yahoomail.com | B24: omail | D24: abc123@gmail.com
A25: abc123@gmail.com | B25: gmail | C25: abc123@gmail.com | D25: jkl@gmail.com
A26: Yahoo1234@yahoomail.com | B26: omail | D26: abcd@gmail.com
A27: abc@rediffmail.com | B27: fmail | D27: abc123@gmail.com
A28: jkl@gmail.com | B28: gmail | C28: jkl@gmail.com | D28: jkl@gmail.com
A29: rstuv@yahoomail.com | B29: omail | D29: abcd@gmail.com
A30: abcd@gmail.com | B30: gmail | C30: abcd@gmail.com | D30: abc123@gmail.com
A31: mnop@yahoomail.com | B31: omail | D31: jkl@gmail.com
A32: abc123@gmail.com | B32: gmail | C32: abc123@gmail.com | D32: abcd@gmail.com
A33: Yahoo1234@yahoomail.com | B33: omail | D33: abc123@gmail.com
A34: abc@rediffmail.com | B34: fmail | D34: jkl@gmail.com
A35: jkl@gmail.com | B35: gmail | C35: jkl@gmail.com | D35: abcd@gmail.com
A36: rstuv@yahoomail.com | B36: omail | D36: abc123@gmail.com
A37: abcd@gmail.com | B37: gmail | C37: abcd@gmail.com | D37: jkl@gmail.com
A38: mnop@yahoomail.com | B38: omail | D38: abcd@gmail.com
A39: abc123@gmail.com | B39: gmail | C39: abc123@gmail.com | D39: abc123@gmail.com
A40: Yahoo1234@yahoomail.com | B40: omail | D40: jkl@gmail.com
A41: abc@rediffmail.com | B41: fmail | D41: abcd@gmail.com
A42: jkl@gmail.com | B42: gmail | C42: jkl@gmail.com | D42: abc123@gmail.com
A43: rstuv@yahoomail.com | B43: omail | D43: jkl@gmail.com
A44: abcd@gmail.com | B44: gmail | C44: abcd@gmail.com
A45: mnop@yahoomail.com | B45: omail
A46: abc123@gmail.com | B46: gmail | C46: abc123@gmail.com
A47: Yahoo1234@yahoomail.com | B47: omail
A48: abc@rediffmail.com | B48: fmail
A49: jkl@gmail.com | B49: gmail | C49: jkl@gmail.com
A50: rstuv@yahoomail.com | B50: omail
A51: abcd@gmail.com | B51: gmail | C51: abcd@gmail.com
A52: mnop@yahoomail.com | B52: omail
A53: abc123@gmail.com | B53: gmail | C53: abc123@gmail.com
A54: Yahoo1234@yahoomail.com | B54: omail
A55: abc@rediffmail.com | B55: fmail
A56: jkl@gmail.com | B56: gmail | C56: jkl@gmail.com
A57: rstuv@yahoomail.com | B57: omail
A58: abcd@gmail.com | B58: gmail | C58: abcd@gmail.com
A59: mnop@yahoomail.com | B59: omail
A60: abc123@gmail.com | B60: gmail | C60: abc123@gmail.com
A61: Yahoo1234@yahoomail.com | B61: omail
A62: abc@rediffmail.com | B62: fmail
A63: jkl@gmail.com | B63: gmail | C63: jkl@gmail.com
A64: rstuv@yahoomail.com | B64: omail
A65: abcd@gmail.com | B65: gmail | C65: abcd@gmail.com
A66: mnop@yahoomail.com | B66: omail
A67: abc123@gmail.com | B67: =MID(RIGHT(A67,9),1,5) -> gmail | C67: =IF(MID(RIGHT(A67,9),1,5)="gmail",A67,"") -> abc123@gmail.com
A68: Yahoo1234@yahoomail.com | B68: omail
A69: abc@rediffmail.com | B69: fmail
A70: jkl@gmail.com | B70: gmail | C70: jkl@gmail.com
A71: rstuv@yahoomail.com | B71: omail
A72: abcd@gmail.com | B72: gmail | C72: abcd@gmail.com
A73: mnop@yahoomail.com | B73: omail
A74: abc123@gmail.com | B74: gmail | C74: abc123@gmail.com
A75: Yahoo1234@yahoomail.com | B75: omail
A76: abc@rediffmail.com | B76: fmail
A77: jkl@gmail.com | B77: gmail | C77: jkl@gmail.com
A78: rstuv@yahoomail.com | B78: omail
A79: abcd@gmail.com | B79: gmail | C79: abcd@gmail.com
A80: mnop@yahoomail.com | B80: omail
A81: abc123@gmail.com | B81: gmail | C81: abc123@gmail.com
A82: Yahoo1234@yahoomail.com | B82: omail
A83: abc@rediffmail.com | B83: fmail
A84: jkl@gmail.com | B84: gmail | C84: jkl@gmail.com
A85: rstuv@yahoomail.com | B85: omail
A86: abcd@gmail.com | B86: gmail | C86: abcd@gmail.com
A87: mnop@yahoomail.com | B87: omail
A88: abc123@gmail.com | B88: gmail | C88: abc123@gmail.com
A89: Yahoo1234@yahoomail.com | B89: omail
A90: abc@rediffmail.com | B90: fmail
A91: jkl@gmail.com | B91: gmail | C91: jkl@gmail.com
A92: rstuv@yahoomail.com | B92: omail
A93: abcd@gmail.com | B93: gmail | C93: abcd@gmail.com
A94: mnop@yahoomail.com | B94: omail
A95: abc123@gmail.com | B95: gmail | C95: abc123@gmail.com
A96: Yahoo1234@yahoomail.com | B96: omail
A97: abc@rediffmail.com | B97: fmail
A98: jkl@gmail.com | B98: gmail | C98: jkl@gmail.com
A99: rstuv@yahoomail.com | B99: omail

Sheet Min
A1: MIN Function | J1: Return To Index
A2: Data | B2: Result | C2: Formula
A3: 32 | B3: =MIN(A3:A$9) -> 32 | C3: =MIN(A3:A$9)
A4: 59 | B4: =MIN(A4:A$9) -> 59 | C4: =MIN(A4:A$9)
A5: 86 | B5: =MIN(A5:A$9) -> 66 | C5: =MIN(A5:A$9)
A6: 66 | B6: =MIN(A6:A$9) -> 66 | C6: =MIN(A6:A$9)
A7: 67 | B7: =MIN(A7:A$9) -> 67 | C7: =MIN(A7:A$9)
A8: 78 | B8: =MIN(A8:A$9) -> 78 | C8: =MIN(A8:A$9)
A9: 84 | B9: =MIN(A9:A$9) -> 84 | C9: =MIN(A9:A$9)

Sheet Mod
A1: MOD Function | J1: Return To Index
A2: DIVIDEND | B2: DIVISOR | C2: REMAINDER | D2: FORMULA
A3: 25 | B3: 5 | C3: =MOD(A3,B3) -> 0 | D3: =MOD(A3,B3)
A4: 24 | B4: 5 | C4: 4 | D4: =MOD(A4,B4)
A5: 18 | B5: 5 | C5: 3 | D5: =MOD(A5,B5)
A6: 16 | B6: 4 | C6: 0 | D6: =MOD(A6,B6)
A7: 26 | B7: 6 | C7: 2 | D7: =MOD(A7,B7)
A8: 24 | B8: 9 | C8: 6 | D8: =MOD(A8,B8)
A9: 14 | B9: 4 | C9: 2 | D9: =MOD(A9,B9)

Sheet Month
A1: Month Function | J1: Return To Index
A2: Date | B2: Result | C2: Formula
A3: 2020-03-20 | B3: =MONTH(A3) -> 3 | C3: =MONTH(A3)
A4: 1978-01-27 | B4: =MONTH(A4) -> 1 | C4: =MONTH(A4)

Sheet Multiple_Condns_to_OR_with_IF
A1: Apply OR Operator with IF Condition | J1: Return To Index
A2: Data | B2: Price | C2: Result | D2: Formula
A3: Apple | B3: 25 | C3: =IF(OR(B3>70,B4>70,B5>70,B6>70,B7>70), "Target Reached", "Target Not Reached") -> Target Not Reached | D3: =IF(OR(B3>70,B4>70,B5>70,B6>70,B7>70), "Target Reached", "Target Not Reached")
A4: Banana | B4: 36 | C4: =IF(OR(B4>70,B5>70,B6>70,B7>70,B8>70), "Target Reached", "Target Not Reached") -> Target Not Reached | D4: =IF(OR(B4>70,B5>70,B6>70,B7>70,B8>70), "Target Reached", "Target Not Reached")
A5: Orange | B5: 14 | C5: Target Not Reached | D5: =IF(OR(B5>70,B6>70,B7>70,B8>70,B9>70), "Target Reached", "Target Not Reached")
A6: Grapes | B6: 28 | C6: Target Not Reached | D6: =IF(OR(B6>70,B7>70,B8>70,B9>70,B10>70), "Target Reached", "Target Not Reached")
A7: PineApple | B7: 45 | C7: Target Not Reached | D7: =IF(OR(B7>70,B8>70,B9>70,B10>70,B11>70), "Target Reached", "Target Not Reached")

Sheet NestedIF_Function_Grading_Price
A1: Proivde Grades To Price Using Nested IF Conditions | J1: Return To Index
A2: Data | B2: Price | C2: Grades | D2: Formula
A3: Pen | B3: 80 | C3: =IF(B3 >=80, "A",IF(B3 >=60, "B", IF(B3<60, "C"))) -> A | D3: =IF(B3 >=80, "A",IF(B3 >=60, "B", IF(B3<60, "C")))
A4: Pencil | B4: 45 | C4: =IF(B4 >=80, "A",IF(B4 >=60, "B", IF(B4<60, "C"))) -> C | D4: =IF(B4 >=80, "A",IF(B4 >=60, "B", IF(B4<60, "C")))
A5: Eraser | B5: 78 | C5: B | D5: =IF(B5 >=80, "A",IF(B5 >=60, "B", IF(B5<60, "C")))
A6: Duster | B6: 81 | C6: A | D6: =IF(B6 >=80, "A",IF(B6 >=60, "B", IF(B6<60, "C")))
A7: Marker | B7: 59 | C7: C | D7: =IF(B7 >=80, "A",IF(B7 >=60, "B", IF(B7<60, "C")))

Sheet NetWorkingDays
J1: Return To Index
A2: NetWorkingDays Function
A4: Start Date | B4: End Date | C4: Holidays | D4: NetWorkingDays | E4: Formula
A5: 2020-01-25 | B5: 2021-01-25 | C5: 0 | D5: =NETWORKDAYS(A5,B5,0) -> 261 | E5: =NETWORKDAYS(A5,B5,0)
A6: 2020-01-25 | B6: 2021-01-25 | C6: 2020-02-25 | D6: =NETWORKDAYS(A6,B6,C6) -> 260 | E6: =NETWORKDAYS(A6,B6,C6)
A7: 2020-01-25 | B7: 2021-01-25 | C7: 2020-05-11 | D7: =NETWORKDAYS(A7,B7,C6:C7) -> 259 | E7: =NETWORKDAYS(A7,B7,C6:C7)
A8: 2020-01-25 | B8: 2021-01-25 | C8: 2020-05-18 | D8: =NETWORKDAYS(A8,B8,C6:C8) -> 258 | E8: =NETWORKDAYS(A8,B8,C6:C8)
A9: 2020-01-25 | B9: 2021-01-25 | C9: 2020-06-20 | D9: =NETWORKDAYS(A9,B9,C6:C9) -> 258 | E9: =NETWORKDAYS(A9,B9,C6:C9)

Sheet Now
A1: Now Function | J1: Return To Index
A2: Now Formula Result | B2: Formula
A3: =NOW() -> 2021-02-13T11:14:08.550 | B3: =NOW()

Sheet ODD
A1: Data | B1: Result | C1: Formula | J1: Return To Index
A2: 80 | B2: =ODD(A2) -> 81 | C2: =ODD(A2)
A3: 70 | B3: =ODD(A3) -> 71 | C3: =ODD(A3)
A4: 55 | B4: 55 | C4: =ODD(A4) | F4: It returns nearest ODD Number if Input number is EVEN
A5: 74 | B5: 75 | C5: =ODD(A5) | F5: There is no change if the Input number is ODD
A6: 65 | B6: 65 | C6: =ODD(A6)

Sheet OR_Operator
A1: OR Operator | J1: Return To Index
A2: Number | B2: Result | C2: Formula
A3: 15 | B3: =OR(A3>11,A3<18) -> TRUE | C3: =OR(A3>11,A3<18)
A4: 20 | B4: =OR(A4>11,A4<18) -> TRUE | C4: =OR(A4>11,A4<18)
A5: 29 | B5: TRUE | C5: =OR(A5>11,A5<18)
A6: 20 | B6: TRUE | C6: =OR(A6>11,A6<18)
A7: 44 | B7: TRUE | C7: =OR(A7>11,A7<18)

Sheet OR_Operator_with_IF_Condition
A1: OR Operator with IF Condition | J1: Return To Index
A2: Science | B2: Social | C2: Result | D2: Formula
A3: 15 | B3: 22 | C3: =IF(OR(A3>=35,B3>=35),"PASS","FAIL") -> FAIL | D3: =IF(OR(A3>=35,B3>=35),"PASS","FAIL")
A4: 20 | B4: 38 | C4: =IF(OR(A4>=35,B4>=35),"PASS","FAIL") -> PASS | D4: =IF(OR(A4>=35,B4>=35),"PASS","FAIL")
A5: 29 | B5: 17 | C5: FAIL | D5: =IF(OR(A5>=35,B5>=35),"PASS","FAIL")
A6: 78 | B6: 47 | C6: PASS | D6: =IF(OR(A6>=35,B6>=35),"PASS","FAIL")
A7: 34 | B7: 22 | C7: FAIL | D7: =IF(OR(A7>=35,B7>=35),"PASS","FAIL")

Sheet Proper
A1: Proper Function | J1: Return To Index
A2: Fruits | B2: Result | C2: Formula
A3: Apple | B3: =PROPER(A3) -> Apple | C3: =PROPER(A3)
A4: Banana | B4: =PROPER(A4) -> Banana | C4: =PROPER(A4)
A5: Orange | B5: Orange | C5: =PROPER(A5)
A6: Grapes | B6: Grapes | C6: =PROPER(A6)
A7: PineApple | B7: Pineapple | C7: =PROPER(A7)

Sheet Quotient
A1: Subject | B1: Amount | C1: Books | D1: Per Book Price | E1: Formula | J1: Return To Index
A2: Science | B2: 100 | C2: 3 | D2: =QUOTIENT(B2,C2) -> 33 | E2: =QUOTIENT(B2,C2)
A3: Maths | B3: 130 | C3: 7 | D3: 18 | E3: =QUOTIENT(B3,C3)
A4: English | B4: 145 | C4: 8 | D4: 18 | E4: =QUOTIENT(B4,C4)
A5: Social | B5: 360 | C5: 9 | D5: 40 | E5: =QUOTIENT(B5,C5)
A6: Hindi | B6: 210 | C6: 11 | D6: 19 | E6: =QUOTIENT(B6,C6)
B8: Quotient Function gives whole number as answer, ignores the decimals

Sheet Rank
A1: STUDENT | B1: MARKS | C1: RANK | D1: FORMULA | J1: Return To Index
A2: A | B2: 4 | C2: =RANK(B2,$B$2:$B$6,0) -> 4 | D2: =RANK(B2,$B$2:$B$6,0)
A3: B | B3: 6 | C3: =RANK(B3,$B$2:$B$6,0) -> 3 | D3: =RANK(B3,$B$2:$B$6,0)
A4: C | B4: 3 | C4: =RANK(B4,$B$2:$B$6,0) -> 5 | D4: =RANK(B4,$B$2:$B$6,0)
A5: D | B5: 12 | C5: =RANK(B5,$B$2:$B$6,0) -> 2 | D5: =RANK(B5,$B$2:$B$6,0)
A6: E | B6: 24 | C6: =RANK(B6,$B$2:$B$6,0) -> 1 | D6: =RANK(B6,$B$2:$B$6,0)

Sheet Rank_when_Duplicates_Exists
J1: Return To Index
B2: Fruit | C2: PRICE | D2: Rank | E2: More than once | F2: Ranking | G2: Final | H2: Formula
B3: Apple | C3: 145 | D3: =RANK(C3,$C$3:$C$12,0) -> 2 | E3: =COUNTIF($C3:$C$12,C3)-1 -> 1 | F3: =D3+E3 -> 3 | G3: =RANK(C3,$C$3:$C$12,0)+COUNTIF($C3:$C$12,C3)-1 -> 3 | H3: =RANK(C3,$C$3:$C$12,0)+COUNTIF($C3:$C$12,C3)-1
B4: Banana | C4: 145 | D4: =RANK(C4,$C$3:$C$12,0) -> 2 | E4: =COUNTIF($C4:$C$12,C4)-1 -> 0 | F4: =D4+E4 -> 2 | G4: =RANK(C4,$C$3:$C$12,0)+COUNTIF($C4:$C$12,C4)-1 -> 2 | H4: =RANK(C4,$C$3:$C$12,0)+COUNTIF($C4:$C$12,C4)-1
B5: Grapes | C5: 125 | D5: 6 | E5: =COUNTIF($C5:$C$12,C5)-1 -> 0 | F5: 6 | G5: =RANK(C5,$C$3:$C$12,0)+COUNTIF($C5:$C$12,C5)-1 -> 6 | H5: =RANK(C5,$C$3:$C$12,0)+COUNTIF($C5:$C$12,C5)-1
B6: PineApple | C6: 115 | D6: 7 | E6: =COUNTIF($C6:$C$12,C6)-1 -> 0 | F6: 7 | G6: =RANK(C6,$C$3:$C$12,0)+COUNTIF($C6:$C$12,C6)-1 -> 7 | H6: =RANK(C6,$C$3:$C$12,0)+COUNTIF($C6:$C$12,C6)-1
B7: Orange | C7: 195 | D7: 1 | E7: =COUNTIF($C7:$C$12,C7)-1 -> 0 | F7: 1 | G7: =RANK(C7,$C$3:$C$12,0)+COUNTIF($C7:$C$12,C7)-1 -> 1 | H7: =RANK(C7,$C$3:$C$12,0)+COUNTIF($C7:$C$12,C7)-1
B8: Papaya | C8: 96 | D8: 8 | E8: =COUNTIF($C8:$C$12,C8)-1 -> 1 | F8: 9 | G8: =RANK(C8,$C$3:$C$12,0)+COUNTIF($C8:$C$12,C8)-1 -> 9 | H8: =RANK(C8,$C$3:$C$12,0)+COUNTIF($C8:$C$12,C8)-1
B9: WaterMelon | C9: 96 | D9: 8 | E9: =COUNTIF($C9:$C$12,C9)-1 -> 0 | F9: 8 | G9: =RANK(C9,$C$3:$C$12,0)+COUNTIF($C9:$C$12,C9)-1 -> 8 | H9: =RANK(C9,$C$3:$C$12,0)+COUNTIF($C9:$C$12,C9)-1
B10: Mango | C10: 63 | D10: 10 | E10: =COUNTIF($C10:$C$12,C10)-1 -> 0 | F10: 10 | G10: =RANK(C10,$C$3:$C$12,0)+COUNTIF($C10:$C$12,C10)-1 -> 10 | H10: =RANK(C10,$C$3:$C$12,0)+COUNTIF($C10:$C$12,C10)-1
B11: Strawberry | C11: 135 | D11: 4 | E11: =COUNTIF($C11:$C$12,C11)-1 -> 1 | F11: 5 | G11: =RANK(C11,$C$3:$C$12,0)+COUNTIF($C11:$C$12,C11)-1 -> 5 | H11: =RANK(C11,$C$3:$C$12,0)+COUNTIF($C11:$C$12,C11)-1
B12: Grauva | C12: 135 | D12: 4 | E12: =COUNTIF($C12:$C$12,C12)-1 -> 0 | F12: 4 | G12: =RANK(C12,$C$3:$C$12,0)+COUNTIF($C12:$C$12,C12)-1 -> 4 | H12: =RANK(C12,$C$3:$C$12,0)+COUNTIF($C12:$C$12,C12)-1

Sheet Remove_Dupes_IndexMatchIfError
A1: Item | B1: Unique | C1: Formula | J1: Return To Index
A2: Apple | B2: =IFERROR(INDEX($A$2:$A$10, MATCH(0, COUNTIF($B$1:B1, $A$2:$A$10), 0)),"") -> Apple | C2: =IFERROR(INDEX ($A$2:$A$10, MATCH(0, COUNTIF ($B$1:B1, $A$2:$A$10), 0)),"")
A3: 99 | B3: =IFERROR(INDEX($A$2:$A$10, MATCH(0, COUNTIF($B$1:B2, $A$2:$A$10), 0)),"") -> 99
A4: Pencil | B4: =IFERROR(INDEX($A$2:$A$10, MATCH(0, COUNTIF($B$1:B3, $A$2:$A$10), 0)),"") -> Pencil
A5: Orange | B5: =IFERROR(INDEX($A$2:$A$10, MATCH(0, COUNTIF($B$1:B4, $A$2:$A$10), 0)),"") -> Orange
A6: 99 | B6: =IFERROR(INDEX($A$2:$A$10, MATCH(0, COUNTIF($B$1:B5, $A$2:$A$10), 0)),"") -> 16
A7: 16 | B7: =IFERROR(INDEX($A$2:$A$10, MATCH(0, COUNTIF($B$1:B6, $A$2:$A$10), 0)),"") -> Grapes
A8: Grapes | B8: =IFERROR(INDEX($A$2:$A$10, MATCH(0, COUNTIF($B$1:B7, $A$2:$A$10), 0)),"") -> 18
A9: 18 | B9: =IFERROR(INDEX($A$2:$A$10, MATCH(0, COUNTIF($B$1:B8, $A$2:$A$10), 0)),"") -> 
A10: Apple | B10: =IFERROR(INDEX($A$2:$A$10, MATCH(0, COUNTIF($B$1:B9, $A$2:$A$10), 0)),"") -> 

Sheet Remove_Dupes_VLookupIFError_Row
A1: Remove Duplicates Using Vlookup,IFError and Row Functions | J1: Return To Index
A2: Numbering | B2: Item | C2: Unique | D2: IFError | E2: Formula
A3: 1 | B3: Apple | C3: =VLOOKUP(ROW()-1,$A$3:$B$11,2,0) -> 99 | D3: =IFERROR(VLOOKUP(ROW()-1,$A$3:$B$11,2,0),"") -> 99 | E3: =IFERROR(VLOOKUP(ROW()-1,$A$3:$B$11,2,0),"")
A4: =IF(COUNTIF(B$2:B4,B4)=1,A3+1,A3) -> 2 | B4: 99 | C4: =VLOOKUP(ROW()-1,$A$3:$B$11,2,0) -> Pencil | D4: =IFERROR(VLOOKUP(ROW()-1,$A$3:$B$11,2,0),"") -> Pencil | E4: =IFERROR(VLOOKUP(ROW()-1,$A$3:$B$11,2,0),"")
A5: =IF(COUNTIF(B$2:B5,B5)=1,A4+1,A4) -> 3 | B5: Pencil | C5: Pen | D5: Pen | E5: =IFERROR(VLOOKUP(ROW()-1,$A$3:$B$11,2,0),"")
A6: =IF(COUNTIF(B$2:B6,B6)=1,A5+1,A5) -> 4 | B6: Pen | C6: 16 | D6: 16 | E6: =IFERROR(VLOOKUP(ROW()-1,$A$3:$B$11,2,0),"")
A7: =IF(COUNTIF(B$2:B7,B7)=1,A6+1,A6) -> 4 | B7: 99 | C7: Orange | D7: Orange | E7: =IFERROR(VLOOKUP(ROW()-1,$A$3:$B$11,2,0),"")
A8: =IF(COUNTIF(B$2:B8,B8)=1,A7+1,A7) -> 5 | B8: 16 | E8: =IFERROR(VLOOKUP(ROW()-1,$A$3:$B$11,2,0),"")
A9: =IF(COUNTIF(B$2:B9,B9)=1,A8+1,A8) -> 5 | B9: Apple | E9: =IFERROR(VLOOKUP(ROW()-1,$A$3:$B$11,2,0),"")
A10: =IF(COUNTIF(B$2:B10,B10)=1,A9+1,A9) -> 5 | B10: 99 | E10: =IFERROR(VLOOKUP(ROW()-1,$A$3:$B$11,2,0),"")
A11: =IF(COUNTIF(B$2:B11,B11)=1,A10+1,A10) -> 6 | B11: Orange | E11: =IFERROR(VLOOKUP(ROW()-1,$A$3:$B$11,2,0),"")
A12: STEP #1 | C12: STEP #2 | D12: STEP #3

Sheet Remove_Duplicates_IF_CountIF
A1: Remove Duplicates Using IF and CountIF Function | J1: Return To Index
A2: Item | B2: Unique | C2: Formula
A3: Apple | B3: =IF(COUNTIF($A$3:A3,A3)=1,A3,"") -> Apple | C3: =IF(COUNTIF($A$3:A3,A3)=1,A3,"")
A4: 99 | B4: =IF(COUNTIF($A$3:A4,A4)=1,A4,"") -> 99 | C4: =IF(COUNTIF($A$3:A4,A4)=1,A4,"")
A5: Pencil | B5: =IF(COUNTIF($A$3:A5,A5)=1,A5,"") -> Pencil | C5: =IF(COUNTIF($A$3:A5,A5)=1,A5,"")
A6: Pen | B6: =IF(COUNTIF($A$3:A6,A6)=1,A6,"") -> Pen | C6: =IF(COUNTIF($A$3:A6,A6)=1,A6,"")
A7: 99 | B7: =IF(COUNTIF($A$3:A7,A7)=1,A7,"") ->  | C7: =IF(COUNTIF($A$3:A7,A7)=1,A7,"")
A8: 16 | B8: =IF(COUNTIF($A$3:A8,A8)=1,A8,"") -> 16 | C8: =IF(COUNTIF($A$3:A8,A8)=1,A8,"")
A9: Apple | B9: =IF(COUNTIF($A$3:A9,A9)=1,A9,"") ->  | C9: =IF(COUNTIF($A$3:A9,A9)=1,A9,"")
A10: 99 | B10: =IF(COUNTIF($A$3:A10,A10)=1,A10,"") ->  | C10: =IF(COUNTIF($A$3:A10,A10)=1,A10,"")
A11: Orange | B11: =IF(COUNTIF($A$3:A11,A11)=1,A11,"") -> Orange | C11: =IF(COUNTIF($A$3:A11,A11)=1,A11,"")

Sheet Remove_Last_Two_Chars_Left_Len
A1: Remove Last Two Characters From String | J1: Return To Index
A2: Original Text | B2: Result | C2: Formula
A3: Apple | B3: =LEFT(A3,LEN(A3)-2) -> App | C3: =LEFT(A3,LEN(A3)-2)
A4: Banana | B4: =LEFT(A4,LEN(A4)-2) -> Bana | C4: =LEFT(A4,LEN(A4)-2)
A5: PineApple | B5: PineApp | C5: =LEFT(A5,LEN(A5)-2)
A6: Orange | B6: Oran | C6: =LEFT(A6,LEN(A6)-2)
A7: Grapes | B7: Grap | C7: =LEFT(A7,LEN(A7)-2)

Sheet Replace
A1: Replace Function | J1: Return To Index
A2: Old Text | B2: New Text | C2: Formula
A3: Old Text | B3: =REPLACE(A3,1,3,"New") -> New Text | C3: =REPLACE(A2,1,3,"New")
A4: Apple | B4: =REPLACE(A4,4,2,"") -> App | C4: =REPLACE(A3,4,2,"")
A5: Banana | B5: =REPLACE(A5,4,3,"ner") -> Banner | C5: =REPLACE(A4,4,3,"ner")
A6: Orange | B6: =REPLACE(A6,1,1,"Ar") -> Arrange | C6: =REPLACE(A5,1,1,"Ar")
A7: Ascending | B7: =REPLACE(A7,1,1,"De") -> Descending | C7: =REPLACE(A6,1,1,"De")
A8: Increase | B8: =REPLACE(A8,1,2,"De") -> Decrease | C8: =REPLACE(A7,1,2,"De")

Sheet Replace_Using_IF_And_Left_Func
A1: Fruit | B1: Result | C1: Formula | J1: Return To Index
A2: Apple | B2: =IF(LEFT(A2,1)="A",REPLACE(A2,1,5,"App"),"Not Replaced") -> App | C2: =IF(LEFT(A2,1)="A",REPLACE(A2,1,5,"App"),"Not Replaced")
A3: Banana | B3: =IF(LEFT(A3,1)="A",REPLACE(A3,1,5,"App"),"Not Replaced") -> Not Replaced | C3: =IF(LEFT(A3,1)="A",REPLACE(A3,1,5,"App"),"Not Replaced")
A4: Apple | B4: App | C4: =IF(LEFT(A4,1)="A",REPLACE(A4,1,5,"App"),"Not Replaced")
A5: Grapes | B5: Not Replaced | C5: =IF(LEFT(A5,1)="A",REPLACE(A5,1,5,"App"),"Not Replaced")
A6: Pineapple | B6: Not Replaced | C6: =IF(LEFT(A6,1)="A",REPLACE(A6,1,5,"App"),"Not Replaced")

Sheet Rept
A1: REPT Function | J1: Return To Index
A2: Fruits | B2: Result | C2: Formula
A3: Apple | B3: =REPT(A3,2) -> AppleApple | C3: =REPT(A3,2)
A4: Banana | B4: =REPT(A4,3) -> BananaBananaBanana | C4: =REPT(A4,3)
A5: Orange | B5: =REPT(A5,1) -> Orange | C5: =REPT(A5,1)
A6: Grapes | B6: =REPT(A6, 2) -> GrapesGrapes | C6: =REPT(A6, 2)
A7: PineApple | B7: =REPT(A7,2) -> PineApplePineApple | C7: =REPT(A7,2)

Sheet Retrieve_Dupes_Using_CountIF_IF
A1: Item | B1: Duplicates | C1: Formula | J1: Return To Index
A2: Apple | B2: =IF(COUNTIF($A$2:$A$10,A2)>1,A2,"") -> Apple | C2: =IF(COUNTIF($A$2:$A$10,A2)>1,A2,"")
A3: 99 | B3: 99 | C3: =IF(COUNTIF($A$2:$A$10,A3)>1,A3,"")
A4: Pencil | B4: Pencil | C4: =IF(COUNTIF($A$2:$A$10,A4)>1,A4,"")
A5: Pen | C5: =IF(COUNTIF($A$2:$A$10,A5)>1,A5,"")
A6: 99 | B6: 99 | C6: =IF(COUNTIF($A$2:$A$10,A6)>1,A6,"")
A7: 16 | C7: =IF(COUNTIF($A$2:$A$10,A7)>1,A7,"")
A8: Apple | B8: Apple | C8: =IF(COUNTIF($A$2:$A$10,A8)>1,A8,"")
A9: 99 | B9: 99 | C9: =IF(COUNTIF($A$2:$A$10,A9)>1,A9,"")
A10: Pencil | B10: Pencil | C10: =IF(COUNTIF($A$2:$A$10,A10)>1,A10,"")
A11: Retrieve duplicate values, ignore unique values

Sheet Right
A1: Right Function | J1: Return To Index
A2: Text | B2: Result | C2: Formula
A3: Right Zero | B3: =RIGHT(A3, 0) ->  | C3: =RIGHT(A3, 0)
A4: Right One | B4: =RIGHT(A4, 1) -> e | C4: =RIGHT(A4, 1)
A5: Right Two | B5: =RIGHT(A5, 2) -> wo | C5: =RIGHT(A5, 2)

Sheet ROMAN
A1: ROMAN Function | J1: Return To Index
A2: Data | B2: Roman Number | C2: Formula
A3: 55 | B3: =ROMAN(A3,4) -> LV | C3: =ROMAN(A3,4)
A4: 48 | B4: =ROMAN(A4,4) -> VLIII | C4: =ROMAN(A4,4)
A5: 77 | B5: LXXVII | C5: =ROMAN(A5,4)
A6: 38 | B6: =ROMAN(A6,3) -> XXXVIII | C6: =ROMAN(A6,3)
A7: 28 | B7: =ROMAN(A7,1) -> XXVIII | C7: =ROMAN(A7,1)

Sheet Round
A1: ROUND Function | J1: Return To Index
A2: Data | B2: Result | C2: Formula
A3: 45.22 | B3: =ROUND(A3,0) -> 45 | C3: =ROUND(A3,0)
A4: 78.65 | B4: =ROUND(A4,1) -> 78.7 | C4: =ROUND(A4,1)
A5: 254.257 | B5: =ROUND(A5,1) -> 254.3 | C5: =ROUND(A5,1)
A6: 47.369 | B6: =ROUND(A6,3) -> 47.369 | C6: =ROUND(A6,3)
A7: 22.45 | B7: =ROUND(A7,0) -> 22 | C7: =ROUND(A7,0)

Sheet RoundDown
A1: ROUNDDOWN Function | J1: Return To Index
A2: Data | B2: Result | C2: Formula
A3: 45.22 | B3: =ROUNDDOWN(A3,0) -> 45 | C3: =ROUNDDOWN(A3,0)
A4: 78.65 | B4: =ROUNDDOWN(A4,1) -> 78.6 | C4: =ROUNDDOWN(A4,1)
A5: 254.257 | B5: =ROUNDDOWN(A5,2) -> 254.25 | C5: =ROUNDDOWN(A5,2)
A6: 47.369 | B6: =ROUNDDOWN(A6,2) -> 47.36 | C6: =ROUNDDOWN(A6,2)
A7: 22.45 | B7: =ROUNDDOWN(A7,1) -> 22.4 | C7: =ROUNDDOWN(A7,1)

Sheet RoundUp
A1: ROUNDUP Function | J1: Return To Index
A2: Data | B2: Result | C2: Formula
A3: 45.22 | B3: =ROUNDUP(A3,0) -> 46 | C3: =ROUNDUP(A3,0)
A4: 78.65 | B4: =ROUNDUP(A4,1) -> 78.7 | C4: =ROUNDUP(A4,1)
A5: 254.257 | B5: =ROUNDUP(A5,2) -> 254.26 | C5: =ROUNDUP(A5,2)
A6: 47.369 | B6: =ROUNDUP(A6,2) -> 47.37 | C6: =ROUNDUP(A6,2)
A7: 22.45 | B7: =ROUNDUP(A7,1) -> 22.5 | C7: =ROUNDUP(A7,1)

Sheet Row
A1: Reference Provided | B1: Reference Omitted | C1: Formula | J1: Return To Index
A2: =ROW(D3) -> 3 | B2: =ROW() -> 2 | C2: =ROW()
A3: =ROW(A6) -> 6 | B3: =ROW() -> 3 | C3: =ROW()
B4: =ROW() -> 4 | C4: =ROW()
B5: =ROW() -> 5 | C5: =ROW()
B6: =ROW() -> 6 | C6: =ROW()
B7: =ROW() -> 7 | C7: =ROW()
B8: =ROW() -> 8 | C8: =ROW()
B9: =ROW() -> 9 | C9: =ROW()
B10: =ROW() -> 10 | C10: =ROW()
B11: =ROW() -> 11 | C11: =ROW()

Sheet Search
A1: Search Function | J1: Return To Index
A2: Fruits | B2: Result | C2: Formula
A3: Apple Banana | B3: =SEARCH("Apple",A3,1) -> 1 | C3: =SEARCH("Apple",A3,1)
A4: Banana Apple | B4: =SEARCH("Apple",A4,1) -> 8 | C4: =SEARCH("Apple",A4,1)
A5: Orange Apple | B5: 8 | C5: =SEARCH("Apple",A5,1)
A6: Apple Grapes | B6: 1 | C6: =SEARCH("Apple",A6,1)
A7: PineApple Apple | B7: 5 | C7: =SEARCH("Apple",A7,1)

Sheet SHEET
A1: SHEET Function | J1: Return To Index
A2: Data | B2: Result | C2: Function | H2: Returns the Sheet Number
A3: Apple | B3: =_xlfn.SHEET(A3) -> 108 | C3: =SHEET(A3)
A4: Banana | B4: =_xlfn.SHEET(A4) -> 108 | C4: =SHEET(A4)
A5: Orange | B5: 108 | C5: =SHEET(A5)
A6: Grapes | B6: 108 | C6: =SHEET(A6)
A7: 12345 | B7: 108 | C7: =SHEET(A7)

Sheet Small
A1: Small Function | J1: Return To Index
A2: Data | B2: Result | C2: Formula
A3: 55 | B3: =SMALL($A$3:$A$7, 1) -> 28 | C3: =SMALL($A$3:$A$7, 1)
A4: 48 | B4: =SMALL($A$3:$A$7, 2) -> 38 | C4: =SMALL($A$3:$A$7, 2)
A5: 77 | B5: =SMALL($A$3:$A$7, 3) -> 48 | C5: =SMALL($A$3:$A$7, 3)
A6: 38 | B6: =SMALL($A$3:$A$7, 4) -> 55 | C6: =SMALL($A$3:$A$7, 4)
A7: 28 | B7: =SMALL($A$3:$A$7, 5) -> 77 | C7: =SMALL($A$3:$A$7, 5)

Sheet Split_The_Text_Using_FIND_func
A1: Split The Text Using FIND Function | J1: Return To Index
A2: Original Text | B2: , Position | C2: Left Text | D2: Right Text | E2: Right Text - Formula
A3: Apple, Banana | B3: =FIND(",",A3) -> 6 | C3: =LEFT(A3,B3-1) -> Apple | D3: =RIGHT(A3,LEN(A3)-B3-1) -> Banana | E3: =RIGHT(A3,LEN(A3)-B3-1)
A4: Orange, Grapes | B4: =FIND(",",A4) -> 7 | C4: =LEFT(A4,B4-1) -> Orange | D4: =RIGHT(A4,LEN(A4)-B4-1) -> Grapes | E4: =RIGHT(A4,LEN(A4)-B4-1)
A5: Pen, Pencil | B5: 4 | C5: Pen | D5: Pencil | E5: =RIGHT(A5,LEN(A5)-B5-1)

Sheet Substitute
A1: Substitue Function | J1: Return To Index
A2: Old Text | B2: New Text | C2: Formula
A3: Old Text | B3: =SUBSTITUTE(A3,"Old","My",1) -> My Text | C3: =SUBSTITUTE(A3,"Old","My",1)
A4: Apple | B4: =SUBSTITUTE(A4,"p","e",2) -> Apele | C4: =SUBSTITUTE(A4,"p","e",2)
A5: Banana | B5: =SUBSTITUTE(A5,"a"," ") -> B n n | C5: =SUBSTITUTE(A5,"a"," ")
A6: ProvideSpace | B6: =SUBSTITUTE(A6,"e","e ",1) -> Provide Space | C6: =SUBSTITUTE(A6,"e","e ",1)
A7: Remove Space | B7: =SUBSTITUTE(A7," ","",1) -> RemoveSpace | C7: =SUBSTITUTE(A7," ","",1)

Sheet Sum
A1: Sum Function | J1: Return To Index
A2: Data | B2: Result | C2: Formula
A3: 55 | B3: =SUM(A3:A$7) -> 269 | C3: =SUM(A3:A$7)
A4: 45 | B4: =SUM(A4:A$7) -> 214 | C4: =SUM(A4:A$7)
A5: 36 | B5: =SUM(A5:A$7) -> 169 | C5: =SUM(A5:A$7)
A6: 78 | B6: =SUM(A6:A$7) -> 133 | C6: =SUM(A6:A$7)
A7: 55 | B7: =SUM(A7:A$7) -> 55 | C7: =SUM(A7:A$7)

Sheet Sum_Based_On_Incremental_Range
A1: Sum based on Incremental Range | J1: Return To Index
A3: Weekday | B3: Sales | D3: Weekly Sum | F3: Formula
A4: Monday | B4: 1500 | D4: 1st Week | E4: =SUM(OFFSET($B$4,(ROW()-ROW($B$4))*6,0,6,1)) -> 8454 | F4: =SUM(OFFSET($B$4,(ROW()-ROW($B$4))*6,0,6,1))
A5: Tuesday | B5: 1600 | D5: 2nd Week | E5: =SUM(OFFSET($B$4,(ROW()-ROW($B$4))*6,0,6,1)) -> 57802 | F5: =SUM(OFFSET($B$4,(ROW()-ROW($B$4))*6,0,6,1))
A6: Wednesday | B6: 1300 | D6: 3rd Week | E6: =SUM(OFFSET($B$4,(ROW()-ROW($B$4))*6,0,6,1)) -> 113851 | F6: =SUM(OFFSET($B$4,(ROW()-ROW($B$4))*6,0,6,1))
A7: Thursday | B7: 1400
A8: Friday | B8: 1300
A9: Saturday | B9: 1354 | D9: Monday to Saturday = 1 week
A10: Monday | B10: 6574
A11: Tuesday | B11: 35925
A12: Wednesday | B12: 954
A13: Thursday | B13: 1254
A14: Friday | B14: 9571
A15: Saturday | B15: 3524
A16: Monday | B16: 31458
A17: Tuesday | B17: 8564
A18: Wednesday | B18: 2547
A19: Thursday | B19: 2514
A20: Friday | B20: 36254
A21: Saturday | B21: 32514

Sheet Sum_Large_Three_Values
A1: Item | B1: Price | C1: Position | D1: Result | J1: Return To Index
A2: Pen | B2: 125 | C2: 1 | D2: =LARGE($B$2:$B$9,C2) -> 157 | F2: ADD BASED ON POSITION
A3: Pencil | B3: 145 | C3: 2 | D3: 145 | F3: 5 | G3: 2 | H3: 7
A4: Eraser | B4: 95 | C4: 3 | D4: 125 | F4: =LARGE(B2:B9,F3)+LARGE(B2:B9,G3)+LARGE(B2:B9,H3) -> 306 | G4: RESULT
A5: Marker | B5: 68 | C5: 4 | D5: 98 | F5: =LARGE(B2:B9,F3)+LARGE(B2:B9,G3)+LARGE(B2:B9,H3)
A6: Board | B6: 157 | C6: 5 | D6: 95 | G6: (OR)
A7: Slate | B7: 66 | C7: 6 | D7: 68 | F7: =SUM(LARGE(B2:B9,{5,2,7})) -> 306 | G7: =SUM(LARGE(B2:B9,{5,2,7}))
A8: Books | B8: 98 | C8: 7 | D8: 66
A9: Charts | B9: 35 | C9: 8 | D9: 35

Sheet Sum_The_Named_Range
A1: Sum The Named Range | J1: Return To Index
A2: Data | B2: Price | C2: Result | D2: Formula
A3: Apple | B3: 48 | C3: =SUM(FruitsCost) -> 232 | D3: =SUM(FruitsCost)
A4: Banana | B4: 35
A5: Orange | B5: 47
A6: Banana | B6: 55
A7: Grapes | B7: 47

Sheet SumIF_Based_On_Len_Of_Text
A1: SumIF Function - Based On Length Of Text | J1: Return To Index
A2: Data | B2: Price | C2: Result | D2: Formula
A3: Apple | B3: 48 | C3: =SUMIF($A$3:$A$7,"????*",$B$3:$B$7) -> 197 | D3: =SUMIF($A$3:$A$7,"????*",$B$3:$B$7)
A4: Pen | B4: 35 | C4: Sum when Length consists of Minimum 4 Characters
A5: Pencil | B5: 47
A6: Apple | B6: 55
A7: Grapes | B7: 47

Sheet SumIF_Based_On_WildCard_Chactr
A1: SumIF Function - Criteria with WILDCARD | J1: Return To Index
A2: Data | B2: Price | C2: Result | D2: Formula | E2: Criteria
A3: Apple | B3: 48 | C3: =SUMIF($A$3:$A$7,"???l*",$B$3:$B$7) -> 48 | D3: =SUMIF($A$3:$A$7,"???l*",$B$3:$B$7) | E3: 4th Letter is L
A4: Banana | B4: 35 | C4: =SUMIF($A$3:$A$7,"Banana",$B$3:$B$7) -> 82 | D4: =SUMIF($A$3:$A$7,"??n*",$B$3:$B$7) | E4: 3rd Letter is N
A5: Pencil | B5: 47 | C5: =SUMIF($A$3:$A$7,"?e*",$B$3:$B$7) -> 47 | D5: =SUMIF($A$3:$A$7,"?e*",$B$3:$B$7) | E5: 2nd Letter is E
A6: Grapes | B6: 55 | C6: =SUMIF($A$3:$A$7,"??a*",$B$3:$B$7) -> 55 | D6: =SUMIF($A$3:$A$7,"??a*",$B$3:$B$7) | E6: 3rd Letter is A
A7: Banana | B7: 47 | C7: =SUMIF($A$3:$A$7,"Banana",$B$3:$B$7) -> 82 | D7: =SUMIF($A$3:$A$7,"??n*",$B$3:$B$7) | E7: 3rd Letter is N

Sheet SumIF_Dates
A1: SumIF Function | J1: Return To Index
A2: Date | B2: Price | C2: Result | D2: Formula
A3: 2021-01-26 | B3: 48 | C3: =SUMIF($A$3:$A$7,">=" & "1/28/2021",$B$3:$B$7) -> 184 | D3: =SUMIF($A$3:$A$7,">=" & "1/28/2021",$B$3:$B$7)
A4: 2021-01-29 | B4: 35 | C4: =SUMIF($A$3:$A$7,"<=" & "1/28/2021",$B$3:$B$7) -> 95 | D4: =SUMIF($A$3:$A$7,"<=" & "1/28/2021",$B$3:$B$7)
A5: 2021-01-30 | B5: 47 | C5: =SUMIF($A$3:$A$7,"=" & "1/30/2021",$B$3:$B$7) -> 47 | D5: =SUMIF($A$3:$A$7,"=" & "1/30/2021",$B$3:$B$7)
A6: 2021-01-31 | B6: 55 | C6: =SUMIF($A$3:$A$7,">=" & "1/30/2021",$B$3:$B$7) -> 102 | D6: =SUMIF($A$3:$A$7,">=" & "1/30/2021",$B$3:$B$7)
A7: 2021-01-28 | B7: 47 | C7: =SUMIF($A$3:$A$7,">=" & "1/28/2021",$B$3:$B$7) -> 184 | D7: =SUMIF($A$3:$A$7,">=" & "1/28/2021",$B$3:$B$7)

Sheet SumIF_Function
A1: SumIF Function | J1: Return To Index
A2: Data | B2: Price | C2: Result | D2: Formula
A3: Apple | B3: 48 | C3: =SUMIF($A$3:$A$7,"Apple",$B$3:$B$7) -> 48 | D3: =SUMIF($A$3:$A$7,"Apple",$B$3:$B$7)
A4: Banana | B4: 35 | C4: =SUMIF($A$3:$A$7,"Banana",$B$3:$B$7) -> 90 | D4: =SUMIF($A$3:$A$7,"Banana",$B$3:$B$7)
A5: Orange | B5: 47 | C5: =SUMIF($A$3:$A$7,"Orange",$B$3:$B$7) -> 47 | D5: =SUMIF($A$3:$A$7,"Orange",$B$3:$B$7)
A6: Banana | B6: 55 | C6: =SUMIF($A$3:$A$7,"Apple",$B$3:$B$7) -> 48 | D6: =SUMIF($A$3:$A$7,"Apple",$B$3:$B$7)
A7: Grapes | B7: 47 | C7: =SUMIF($A$3:$A$7,"Grapes",$B$3:$B$7) -> 47 | D7: =SUMIF($A$3:$A$7,"Grapes",$B$3:$B$7)

Sheet SumIF_Multiple_Criteria_On_Col
A1: SumIF Function - Multiple Coditions on Single Column | J1: Return To Index
A2: Data | B2: Price | C2: Result | D2: Formula
A3: Apple | B3: 48 | C3: =SUMIF($A$3:$A$7,"Apple",$B$3:$B$7) + SUMIF($A$3:$A$7,"Orange",$B$3:$B$7) -> 138
A4: Apple | B4: 35 | C4: =SUMIF($A$3:$A$7,"Apple",$B$3:$B$7) + SUMIF($A$3:$A$7,"Orange",$B$3:$B$7)
A5: Grapes | B5: 47
A6: Orange | B6: 55
A7: Banana | B7: 47

Sheet SumIFs_With_Dates
A1: SumIFs Function with Multiple Criteria | J1: Return To Index
A2: Date | B2: Price | C2: Result | D2: Formula
A3: 2021-01-26 | B3: 48 | C3: =SUMIFS($B$3:$B$7, $A$3:$A$7,">=" & "1/28/2021", $A$3:$A$7,"<=" & "1/30/2021") -> 129 | D3: =SUMIFS($B$3:$B$7, $A$3:$A$7,">=" & "1/28/2021", $A$3:$A$7,"<=" & "1/30/2021")
A4: 2021-01-29 | B4: 35
A5: 2021-01-30 | B5: 47
A6: 2021-01-31 | B6: 55
A7: 2021-01-28 | B7: 47

Sheet Time_Add_Hrs_Mins_Secs
A1: Starting Time | B1: Add - Hrs | C1: Mins | D1: Secs | E1: Total | F1: Formula | J1: Return To Index
A2: 12:25:00 | B2: 2 | C2: 25 | D2: 15 | E2: =A2+TIME(B2,C2,D2) -> 14:50:15 | F2: =A2+TIME(B2,C2,D2)
A3: 13:25:00 | B3: 3 | C3: 55 | D3: 25 | E3: =A3+TIME(B3,C3,D3) -> 17:20:25 | F3: =A3+TIME(B3,C3,D3)
A4: 14:25:00 | B4: 5 | C4: 45 | D4: 68 | E4: 20:11:08 | F4: =A4+TIME(B4,C4,D4)
A5: 00:02:00 | B5: 5 | C5: 24 | D5: 25 | E5: 05:26:25 | F5: =A5+TIME(B5,C5,D5)
A6: 00:25:00 | B6: 4 | C6: 35 | D6: 24 | E6: 05:00:24 | F6: =A6+TIME(B6,C6,D6)
A7: 14:25:00 | B7: 2 | C7: 36 | D7: 65 | E7: 17:02:05 | F7: =A7+TIME(B7,C7,D7)
A8: 17:25:00 | B8: 6 | C8: 65 | D8: 24 | E8: 1.021111111 | F8: =A8+TIME(B8,C8,D8)

Sheet Trim
A1: Trim Function | J1: Return To Index
A2: Text | B2: Result | C2: Formula
A3: Trim | B3: =TRIM(A3) -> Trim | C3: =TRIM(A3)
A4: Both Sides Space | B4: =TRIM(A4) -> Both Sides Space | C4: =TRIM(A4)

Sheet Trim_Remove_Space
A1: TRIM Function | J1: Return To Index
A2: Before Trim | B2: After Trim | C2: Formula
A3: This is Trim Function | B3: =TRIM(A3) -> This is Trim Function | C3: =TRIM(A3)
A4: This is Trim Function | B4: =TRIM(A4) -> This is Trim Function | C4: =TRIM(A4)
A5: This is Trim Function | B5: This is Trim Function | C5: =TRIM(A5)
A6: This is Trim Function | B6: This is Trim Function | C6: =TRIM(A6)
A7: This is Trim Fun ction | B7: This is Trim Fun ction | C7: =TRIM(A7)
A8: This is Trim Function | B8: This is Trim Function | C8: =TRIM(A8)
A9: This is Trim Function | B9: This is Trim Function | C9: =TRIM(A9)

Sheet Upper
A1: UPPER Function | J1: Return To Index
A2: Fruits | B2: Result | C2: Formula
A3: Apple | B3: =UPPER(A3) -> APPLE | C3: =UPPER(A3)
A4: Banana | B4: =UPPER(A4) -> BANANA | C4: =UPPER(A4)
A5: Orange | B5: ORANGE | C5: =UPPER(A5)
A6: Grapes | B6: GRAPES | C6: =UPPER(A6)
A7: PineApple | B7: PINEAPPLE | C7: =UPPER(A7)

Sheet VLookup_Grades_With_ApproxMatch
A1: Student | B1: Marks | C1: Grade | E1: Grade Table | J1: Return To Index
A2: A | B2: 95 | C2: =VLOOKUP(B2,$E$3:$G$8,3,1) -> A+ | E2: From | F2: To | G2: Grade
A3: B | B3: 85 | C3: A | E3: 0 | F3: 35 | G3: E
A4: C | B4: 70 | C4: C | E4: 36 | F4: 50 | G4: D
A5: D | B5: 75 | C5: B | E5: 51 | F5: 70 | G5: C
A6: E | B6: 55 | C6: C | E6: 71 | F6: 80 | G6: B
A7: F | B7: 51 | C7: C | E7: 81 | F7: 90 | G7: A
A8: G | B8: 50 | C8: D | E8: 91 | F8: 100 | G8: A+
A9: H | B9: 18 | C9: E
C12: =VLOOKUP(B2,$E$3:$G$8,3,1)

Sheet VLookup_Match_Function_For_Col
J1: Return To Index
B2: Company Name | C2: Pens | D2: Pencils | E2: Erasers | F2: Dusters
B3: A | C3: 1100 | D3: =C3+11 -> 1111 | E3: =D3+11 -> 1122 | F3: 1133
B4: B | C4: 1510 | D4: =C4+11 -> 1521 | E4: 1532 | F4: 1543
B5: C | C5: 1102 | D5: 1113 | E5: 1124 | F5: 1135
B6: D | C6: 1103 | D6: 1114 | E6: 1125 | F6: 1136
B7: E | C7: 1104 | D7: 1115 | E7: 1126 | F7: 1137
B8: G | C8: 1105 | D8: 1116 | E8: 1127 | F8: 1138
B9: G | C9: 1106 | D9: 1117 | E9: 1128 | F9: 1139
B10: H | C10: 1107 | D10: 1118 | E10: 1129 | F10: 1140
B11: I | C11: 1108 | D11: 1119 | E11: 1130 | F11: 1141
B13: Company | C13: Product | E13: Output
B14: B | C14: Pencils | E14: =VLOOKUP(B14,$B$3:$F$11,MATCH(C14,B2:F2,0),FALSE) -> 1521
B15: =VLOOKUP(B14,$B$3:$F$11,MATCH(C14,B2:F2,0),FALSE)

Sheet VLookup_TotalCost_Calculation
A1: Fruits | B1: Sales | C1: Total Cost | E1: Salb Rates Table | J1: Return To Index
A2: Apple | B2: 100 | C2: =VLOOKUP(B2,$E$3:$G$7,3)*B2 -> 3000 | E2: Min Pricing | F2: Max Pricing | G2: Price
A3: Banana | B3: 120 | C3: =VLOOKUP(B3,$E$3:$G$7,3)*B3 -> 4200 | E3: 60 | F3: Upto 60 | G3: 15
A4: Orange | B4: 125 | C4: 4375 | E4: 71 | F4: 80 | G4: 20
A5: Grapes | B5: 65 | C5: 975 | E5: 81 | F5: 90 | G5: 25
A6: PineApple | B6: 75 | C6: 1500 | E6: 91 | F6: 100 | G6: 30
A7: Papaya | B7: 125 | C7: 4375 | E7: 101 | F7: Above | G7: 35
C9: =VLOOKUP(B2,$E$3:$G$7,3)*B2

Sheet Year
A1: YEAR Function | J1: Return To Index
A2: Date | B2: Result | C2: Formula
A3: 2021-01-20 | B3: =YEAR(A3) -> 2021 | C3: =YEAR(A3)

Sheet Add_SerialNumbs_UsingIsBlank_IF
A1: S.No | B1: Fruit | C1: Formula | J1: Return To Index
A2: 100 | B2: Apple | C2: Type First serial number
A3: =IF(ISBLANK(B3),"",A2+1) -> 101 | B3: Banana | C3: =IF(ISBLANK(B3),"",A2+1)
A4: 102 | B4: Grapes | C4: =IF(ISBLANK(B4),"",A3+1)
A5: 103 | B5: Pineapple | C5: =IF(ISBLANK(B5),"",A4+1)
A6: 104 | B6: Orange | C6: =IF(ISBLANK(B6),"",A5+1)
A7: 105 | B7: Papaya | C7: =IF(ISBLANK(B7),"",A6+1)
